Workbook

Sheet UEM
A1: MINISTÉRIO DA INTEGRAÇÃO E DO DESENVOLVIMENTO REGIONAL | J1: BDI serviç | K1: 1.2591
A2: COMPANHIA DE DESENVOLVIMENTO DOS VALES DO SÃO FRANCISCO E DO PARNAÍBA | J2: BDI fornec. | K2: 1.136
A3: SEDE
A4: PLANILHA ORÇAMENTÁRIA DE ESTIMATIVA GERAL PARA O ESTADO DO AMAPÁ | H4: Base SINAPI-AP 03/2025 ORSE 02/2025
H5: Data: Maio/2025
A7: Item | B7: Base | C7: Código | D7: Descrição | E7: unid. | F7: Quant. | G7: Valor (R$)
G8: unit. (sem BDI) | H8: unit. (com BDI) | I8: Total
A10: 3 | D10: UNIDADE DE EXTRAÇÃO DE MEL | I10: =SUM(I12,I15,I21,I28,I34,I36,I40,I43,I48,I54) -> 268252.11
A12: 3.1 | D12: SERVIÇOS PRELIMINARES | I12: =SUM(I13:I14) -> 35042.47
A13: 3.2 | B13: sinapi | C13: 105009 | D13: =[1]CPU!$A$91 -> LOCAÇÃO DE OBRAS | E13: m | F13: =(7.89*2+9.6*2) -> 34.98 | G13: =J13 -> 794.17 | H13: =(J13*K$1) -> 999.939447 | I13: =ROUND(F13*H13,2) -> 34977.88 | J13: 794.17
A14: 3.3 | B14: Sinapi | C14: 98525 | D14: LIMPEZA MECANIZADA DE CAMADA VEGETAL, VEGETAÇÃO E PEQUENAS ÁRVORES (DIÂMETRO DE TRONCO MENOR QUE 0,20 M), COM TRATOR DE ESTEIRAS. | E14: m² | F14: =9.56*7.891 -> 75.43796 | G14: =J14 -> 0.68 | H14: =(G14*K$1) -> 0.856188 | I14: =ROUND(F14*H14,2) -> 64.59 | J14: 0.68
A15: 3.4 | D15: MOVIMENTO DE TERRA | I15: =SUM(I16:I20) -> 2095.57
A16: 3.5 | B16: Sinapi | C16: 101230 | D16: ESCAVAÇÃO VERTICAL A CÉU ABERTO, EM OBRAS DE INFRAESTRUTURA, INCLUINDO CARGA, DESCARGA E TRANSPORTE, EM SOLO DE 1ª CATEGORIA COM ESCAVADEIRA HIDRÁULICA (CAÇAMBA: 0,8 M³ / 111 HP) | E16: m³ | F16: =45.5+1.92+4.32+3 -> 54.74 | G16: =J16 -> 11.58 | H16: =(G16*K$1) -> 14.580378 | I16: =ROUND(F16*H16,2) -> 798.13 | J16: 11.58
A17: 3.6 | B17: Sinapi | C17: 100577 | D17: REGULARIZAÇÃO E COMPACTAÇÃO DE SUBLEITO DE SOLO PREDOMINANTEMENTE ARENOSO. | E17: m² | F17: =9.6*7.9*0.6 -> 45.504 | G17: 0.51 | H17: =(G17*K$1) -> 0.642141 | I17: =ROUND(F17*H17,2) -> 29.22 | J17: 0.51
A18: 3.7 | B18: Sinapi | C18: 96385 | D18: EXECUÇÃO E COMPACTAÇÃO DE ATERRO COM SOLO PREDOMINANTEMENTE ARGILOSO - EXCLUSIVE SOLO, ESCAVAÇÃO, CARGA E TRANSPORTE | E18: m³ | F18: 64.4 | G18: 12.57 | H18: 15.826887 | I18: =ROUND(F18*H18,2) -> 1019.25 | J18: 12.57
A19: 3.8 | B19: Sinapi | C19: 100574 | D19: ESPALHAMENTO DE MATERIAL COM TRATOR DE ESTEIRAS. | E19: m³ | F19: 19.05 | G19: 1.46 | H19: 1.838286 | I19: =ROUND(F19*H19,2) -> 35.02 | J19: 1.46
A20: 3.9 | B20: Sinapi | C20: 100973 | D20: CARGA, MANOBRA E DESCARGA DE SOLOS E MATERIAIS GRANULARES EM CAMINHÃO BASCULANTE 6 M³ - CARGA COM PÁ CARREGADEIRA (CAÇAMBA DE 1,7 A 2,8 M³ /128 HP) E DESCARGA LIVRE | E20: m³ | F20: 19.05 | G20: 8.92 | H20: 11.231172 | I20: =ROUND(F20*H20,2) -> 213.95 | J20: 8.92
A21: 3.10 | D21: FUNDAÇÕES/ ESTRUTURAS DE CONCRETO ARMADO | I21: =SUM(I22:I25) -> 6893.25
A22: 3.11 | B22: Sinapi | C22: 92802 | D22: CORTE E DOBRA DE AÇO CA-50, DIÂMETRO DE 8,0 MM | E22: kg | F22: 101.6 | G22: =J22 -> 13.01 | H22: =(G22*K$1) -> 16.380891 | I22: =ROUND(F22*H22,2) -> 1664.3 | J22: 13.01
A23: 3.12 | B23: Sinapi | C23: 94965 | D23: CONCRETO FCK = 25MPA, TRAÇO 1:2,3:2,7 (CIMENTO/ AREIA MÉDIA/ BRITA 1) - PREPARO MECÂNICO COM BETONEIRA 400 L. | E23: m³ | F23: =2.16+1.8 -> 3.96 | G23: 779.4 | H23: =(G23*K$1) -> 981.34254 | I23: =ROUND(F23*H23,2) -> 3886.12 | J23: 779.4
A24: 3.13 | B24: Sinapi | C24: 103673 | D24: LANÇAMENTO COM USO DE BOMBA, ADENSAMENTO E ACABAMENTO DE CONCRETO EM ESTRUTURAS. AF_02/2022 | E24: m³ | F24: 3.96 | G24: 38.51 | H24: 48.487941 | I24: =ROUND(F24*H24,2) -> 192.01 | J24: 38.51
A25: 3.14 | B25: Sinapi | C25: 97086 | D25: FABRICAÇÃO, MONTAGEM E DESMONTAGEM DE FORMA PARA RADIER, EM MADEIRA SERRADA, 4 UTILIZAÇÕES. | E25: m² | F25: 7.8 | G25: 117.18 | H25: 147.541338 | I25: =ROUND(F25*H25,2) -> 1150.82 | J25: 117.18
A26: 3.15 | D26: REVESTIMENTOS | I26: =SUM(I27:I27) -> 0
A27: 3.16 | B27: Sinapi | C27: 98555 | D27: IMPERMEABILIZAÇÃO DE SUPERFÍCIE COM ARGAMASSA POLIMÉRICA / MEMBRANA ACRÍLICA, 3 DEMÃOS. | E27: m² | F27: 0 | G27: =(J27) -> 0 | H27: =(J27*K$1) -> 0 | I27: =ROUND(F27*H27,2) -> 0
A28: 3.17 | D28: ALVENARIAS, DIVISÓRIAS E FECHAMENTOS | I28: =SUM(I29:I33) -> 25618.96
A29: 3.18 | B29: CPU | C29: CPU010 | D29: REVESTIMENTO DE PAREDES EM CHAPAS DE AÇO INOXIDÁVEL AISI 304 - APENAS INSTALAÇÃO | E29: m² | F29: 70.54 | G29: =J29 -> 42.368 | H29: =(G29*K$1) -> 53.3455488 | I29: =ROUND(F29*H29,2) -> 3763 | J29: =CPU!I209 -> 42.368
A30: 3.19 | B30: ORSE | C30: 10280/ORSE | D30: MANTA EM LÃ DE VIDRO | E30: m² | F30: 66.278 | G30: 15.05 | H30: =(G30*K$1) -> 18.949455 | I30: =ROUND(F30*H30,2) -> 1255.93 | J30: 15.05
A31: 3.20 | B31: CPU | C31: CPU009 | D31: CHAPA XADREZ EM ALUMINIO PARA PISO e:3mm, INCLUSO REBITE PARA FIXAÇÃO - APENAS MÃO DE OBRA | E31: m² | F31: 29.9 | G31: 361.2669 | H31: 454.8711538 | I31: =ROUND(F31*H31,2) -> 13600.65 | J31: =CPU!I196 -> 361.2669
A32: 3.21 | B32: Sinapi | C32: 96486 | D32: FORRO EM RÉGUAS DE PVC, LISO, PARA AMBIENTES COMERCIAIS, INCLUSIVE ESTRUTURA BIDIRECIONAL DE FIXAÇÃO | E32: m² | F32: 29.93 | G32: 78.77 | H32: 99.179307 | I32: =ROUND(F32*H32,2) -> 2968.44 | J32: 78.77
A33: 3.22 | B33: Sinapi | C33: 104723 | D33: PAREDE COM SISTEMA EM CHAPAS DE GESSO PARA DRYWALL, USO INTERNO, COM DUAS FACES DUPLAS E ESTRUTURA METÁLICA COM GUIAS DUPLAS PARA PAREDES COM ÁREA LÍQUIDA MENOR QUE 6 m², COM VÃOS. | E33: m² | F33: 12.096 | G33: 264.67 | H33: 333.245997 | I33: =ROUND(F33*H33,2) -> 4030.94 | J33: 264.67
A34: 3.23 | D34: PINTURAS | I34: =SUM(I35:I35) -> 6638.59
A35: 3.24 | B35: Sinapi | C35: 100751 | D35: PINTURA COM TINTA EPOXÍDICA DE ACABAMENTO PULVERIZADA SOBRE PERFIL METÁLICO EXECUTADO EM FÁBRICA (02 DEMÃOS). | E35: m² | F35: 170.3 | G35: =J35 -> 30.96 | H35: =(G35*K$1) -> 38.981736 | I35: =ROUND(F35*H35,2) -> 6638.59 | J35: 30.96
A36: 3.25 | D36: COBERTURAS | I36: =SUM(I37:I39) -> 36649.39
A37: 3.26 | B37: ORSE | C37: 13874/ORSE | D37: ESTRUTURA METALICA P/ COBERTURA DE CRECHE PADRÃO 1 DO PADRÃO FNDE, EM LIGTH STEEL FRAME, COM PERFIS UE70 MONTANTES DE TUBO UE70, INCLUSIVE FORNECIMENTO E MONTAGEM. EXCLUSIVE TELHAS | E37: m² | F37: 96 | G37: =J37 -> 113.51 | H37: =(G37*K$1) -> 142.920441 | I37: =ROUND(F37*H37,2) -> 13720.36 | J37: 113.51
A38: 3.27 | B38: Sinapi | C38: 94216 | D38: TELHAMENTO COM TELHA METÁLICA TERMOACÚSTICA E = 30 MM, COM ATÉ 2 ÁGUAS, INCLUSO IÇAMENTO | E38: m² | F38: 96 | G38: =J38 -> 174.98 | H38: =(G38*K$1) -> 220.317318 | I38: =ROUND(F38*H38,2) -> 21150.46 | J38: 174.98
A39: 3.28 | B39: Sinapi | C39: 94228 | D39: CALHA EM CHAPA DE AÇO GALVANIZADO NÚMERO 24, DESENVOLVIMENTO DE 50 CM, INCLUSO TRANSPORTE VERTICAL. AF_07/2019 | E39: m | F39: =16*1.1 -> 17.6 | G39: 80.26 | H39: 101.055366 | I39: =ROUND(F39*H39,2) -> 1778.57 | J39: 80.26
A40: 3.29 | D40: CONSTRUÇÃO CIVIL | I40: =SUM(I41:I42) -> 7714.73
A41: 3.30 | B41: Sinapi | C41: 91341 | D41: PORTA EM ALUMÍNIO DE ABRIR TIPO VENEZIANA COM GUARNIÇÃO, FIXAÇÃO COM PARAFUSOS - FORNECIMENTO E INSTALAÇÃO. | E41: m² | F41: 5.04 | G41: =J41 -> 624.81 | H41: =(G41*K$1) -> 786.698271 | I41: =ROUND(F41*H41,2) -> 3964.96 | J41: 624.81
A42: 3.31 | B42: Sinapi | C42: 100674 | D42: CAIXILHO FIXO DE ALUMÍNIO PARA VIDRO (VIDRO INCLUSO), BATENTE/ REQUADRO DE 4 A 14 CM, SEM GUARNIÇÃO/ ALIZAR, FIXAÇÃO COM PARAFUSOS, VEDAÇÃO COM SILICONE, EXCLUSIVE CONTRAMARCO - FORNECIMENTO E INSTALAÇÃO. AF_11/2024 | E42: m² | F42: 3.75 | G42: 794.17 | H42: =(G42*K$1) -> 999.939447 | I42: =ROUND(F42*H42,2) -> 3749.77 | J42: 794.17
A43: 3.32 | D43: INSTALAÇÕES PREDIAIS | I43: =SUM(I44:I47) -> 13890
A44: 3.33 | B44: CPU | C44: CPU001 | D44: =[1]CPU!$A$65 -> EXECUÇÃO DE INSTALAÇÕES HIDROSSANITÁRIAS, EXCLUSIVE EQUIPAMENTOS | E44: =[1]CPU!$I$78 -> cj | F44: 1 | G44: =J44 -> 2636.4 | H44: =(G44*K$1) -> 3319.49124 | I44: =ROUND(F44*H44,2) -> 3319.49 | J44: =CPU!I44 -> 2636.4
A45: 3.34 | B45: SINAPI | C45: 98052 | D45: TANQUE SÉPTICO CIRCULAR, EM CONCRETO PRÉ-MOLDADO, DIÂMETRO INTERNO = 1,10 M, ALTURA INTERNA = 2,50 M, VOLUME ÚTIL: 2138,2 L (PARA 5 CONTRIBUINTES). | E45: un | F45: 1 | G45: 2196.7 | H45: =(G45*K$1) -> 2765.86497 | I45: =ROUND(F45*H45,2) -> 2765.86 | J45: 2196.7
A46: 3.35 | B46: SINAPI | C46: 98062 | D46: SUMIDOURO CIRCULAR, EM CONCRETO PRÉ-MOLDADO, DIÂMETRO INTERNO = 1,88 M, ALTURA INTERNA = 2,00 M, ÁREA DE INFILTRAÇÃO: 13,1 m² (PARA 5 CONTRIBUINTES) | E46: un | F46: 1 | G46: 3346.19 | H46: 4213.187829 | I46: =ROUND(F46*H46,2) -> 4213.19 | J46: 3346.19
A47: 3.36 | B47: CPU | C47: CPU002 | D47: =[1]CPU!$A$78 -> EXECUÇÃO DE INSTALAÇÕES ELÉTRICAS, EXCLUSIVE EQUIPAMENTOS | E47: =[1]CPU!$I$78 -> cj | F47: 1 | G47: 2852.4 | H47: 3591.45684 | I47: =ROUND(F47*H47,2) -> 3591.46 | J47: =CPU!I57 -> 2852.4
A48: 3.37 | D48: SERVIÇOS DIVERSOS | I48: =SUM(I49:I53) -> 26474.18
A49: 3.38 | B49: CPU | C49: CPU003 | D49: =[1]CPU!$A$140 -> CORTE DE CONTAINER PARA ESQUADRIAS | E49: =[1]CPU!$I$140 -> m² | F49: 16.45 | G49: =J49 -> 163.96923 | H49: =(G49*K$1) -> 206.4536575 | I49: =ROUND(F49*H49,2) -> 3396.16 | J49: =CPU!I76 -> 163.96923
A50: 3.39 | B50: CPU | C50: CPU004 | D50: =[1]CPU!$A$182 -> MODIFICAÇÕES NO CONTAINER COM CORTE POR ESMERILHADEIRA | E50: =[1]CPU!$I$182 -> m | F50: 58.26 | G50: 86.1252 | H50: =(G50*K$1) -> 108.4402393 | I50: 6317.73 | J50: =CPU!I118 -> 86.1252
A51: 3.40 | B51: CPU | C51: CPU005 | D51: =[1]CPU!$A$200 -> MODIFICAÇÕES NO CONTAINER UNIÃO ATRAVÉS DO PROCESSO DE SOLDAGEM, INCLUSO IÇAMENTO DO CONTAINER | E51: =[1]CPU!$I$200 -> m | F51: 21.9 | G51: 362.337106 | H51: 456.2186502 | I51: 9991.19 | J51: =CPU!I140 -> 362.337106
A52: 3.41 | B52: CPU | C52: CPU011 | D52: GUARDA-CORPO DE AÇO CARBONO, MONTANTES TUBULARES DE 1.1/2" ESPAÇADOS EM 0,75M, ALTURA APROXIMADA DE 0,90M, PREPARADO COM FunO E TINTA EPÓXI NA COR AMARELA | E52: m | F52: =0.75*2*3*1.1 -> 4.95 | G52: 464.512373 | H52: 584.8675288 | I52: 2895.09 | J52: =CPU!I233 -> 464.512373
A53: 3.42 | B53: CPU | C53: CPU013 | D53: FORNECIMENTO E INSTALAÇÃO DE SUPORTE PARA CAIXA D'ÁGUA EM METALON | E53: un | F53: 1 | G53: 3076.806904 | H53: 3874.007573 | I53: 3874.01 | J53: =CPU!I287 -> 3076.806904
A54: 3.43 | D54: MATERIAIS | I54: =SUM(I55:I116) -> 107234.97
A55: 3.44 | B55: Cotação | D55: CONTAINER DRY BOX 20 PÉS 6,1X2,21X2,6 (COMPXLARGXALTU) | E55: un | F55: 2 | G55: =J55 -> 15901.67 | H55: =G55*$K$2 -> 18064.29712 | I55: =ROUND(F55*H55,2) -> 36128.59 | J55: =CPU!I250 -> 15901.67
A56: 3.45 | B56: Sinapi | C56: 89356 | D56: TUBO PVC, SOLDAVEL, DN 25 MM, AGUA FRIA (NBR-5648) | E56: m | F56: 12 | G56: 21.81 | H56: =G56*$K$2 -> 24.77616 | I56: 297.31 | J56: 21.81
A57: 3.46 | B57: Sinapi | C57: 89357 | D57: TUBO PVC, SOLDAVEL, DN 32 MM, AGUA FRIA (NBR-5648) | E57: m | F57: 18 | G57: 29.7 | H57: 33.7392 | I57: 607.31 | J57: 29.7
A58: 3.47 | B58: Sinapi | C58: 9835 | D58: TUBO PVC SERIE NORMAL, DN 40 MM, PARA ESGOTO PREDIAL (NBR 5688) | E58: m | F58: 3 | G58: 4.72 | H58: 5.36192 | I58: 16.09 | J58: 4.72
A59: 3.48 | B59: Sinapi | C59: 9838 | D59: TUBO PVC SERIE NORMAL, DN 50 MM, PARA ESGOTO PREDIAL (NBR 5688) | E59: m | F59: 20 | G59: 7.8 | H59: 8.8608 | I59: 177.22 | J59: 7.8
A60: 3.49 | B60: Sinapi | C60: 9836 | D60: TUBO PVC SERIE NORMAL, DN 100 MM, PARA ESGOTO PREDIAL (NBR 5688) | E60: m | F60: 1 | G60: 10.82 | H60: 12.29152 | I60: 12.29 | J60: 10.82
A61: 3.50 | B61: Sinapi | C61: 89362 | D61: JOELHO 90 GRAUS, PVC, SOLDÁVEL, DN 25MM, INSTALADO EM RAMAL OU SUB-RAMAL DE ÁGUA - FORNECIMENTO E INSTALAÇÃO. AF_06/2022 | E61: un | F61: 12 | G61: 8.8 | H61: 9.9968 | I61: 119.96 | J61: 8.8
A62: 3.51 | B62: Sinapi | C62: 89367 | D62: JOELHO 90 GRAUS, PVC, SOLDÁVEL, DN 32MM, INSTALADO EM RAMAL OU SUB-RAMAL DE ÁGUA - FORNECIMENTO E INSTALAÇÃO. AF_06/2022 | E62: un | F62: 10 | G62: 12.02 | H62: 13.65472 | I62: =ROUND(F62*H62,2) -> 136.55 | J62: 12.02
A63: 3.52 | B63: Sinapi | C63: 3515 | D63: JOELHO PVC, SOLDAVEL, COM BUCHA DE LATAO, 90 GRAUS, 20 MM X 1/2", PARA AGUA FRIA | E63: un | F63: 2 | G63: 5.72 | H63: 6.49792 | I63: =ROUND(F63*H63,2) -> 13 | J63: 5.72
A64: 3.53 | B64: Sinapi | C64: 7121 | D64: TE PVC, SOLDAVEL, COM BUCHA DE LATAO NA BOLSA CENTRAL, 90 GRAUS, 20 MM X 1/2", PARA AGUA FRIA PREDIAL | E64: un | F64: 2 | G64: 8.05 | H64: 9.1448 | I64: =ROUND(F64*H64,2) -> 18.29 | J64: 8.05
A65: 3.54 | B65: Sinapi | C65: 798 | D65: BUCHA DE REDUCAO PVC ROSCAVEL 3/4" X 1/2" | E65: un | F65: 2 | G65: 1.03 | H65: 1.17008 | I65: =ROUND(F65*H65,2) -> 2.34 | J65: 1.03
A66: 3.55 | B66: Sinapi | C66: 103957 | D66: BUCHA DE REDUÇÃO, CURTA, PVC, SOLDÁVEL, DN 32 X 25 MM, INSTALADO EM PRUMADA DE ÁGUA - FORNECIMENTO E INSTALAÇÃO. AF_06/2022 | E66: un | F66: 2 | G66: 4.46 | H66: 5.06656 | I66: 10.13 | J66: 4.46
A67: 3.56 | B67: Sinapi | C67: 3878 | D67: LUVA PVC, ROSCAVEL, 1 1/2", AGUA FRIA PREDIAL | E67: un | F67: 2 | G67: 10.51 | H67: 11.93936 | I67: 23.88 | J67: 10.51
A68: 3.57 | B68: Sinapi | C68: 4177 | D68: NIPLE DE FERRO GALVANIZADO, COM ROSCA BSP, DE 1/2" | E68: un | F68: 2 | G68: 5.3 | H68: 6.0208 | I68: 12.04 | J68: 5.3
A69: 3.58 | B69: Sinapi | C69: 89395 | D69: TE, PVC, SOLDÁVEL, DN 25MM, INSTALADO EM RAMAL OU SUB-RAMAL DE ÁGUA - FORNECIMENTO E INSTALAÇÃO. AF_06/2022 | E69: un | F69: 3 | G69: 12.13 | H69: 13.77968 | I69: 41.34 | J69: 12.13
A70: 3.59 | B70: Sinapi | C70: 89398 | D70: TE, PVC, SOLDÁVEL, DN 32MM, INSTALADO EM RAMAL OU SUB-RAMAL DE ÁGUA - FORNECIMENTO E INSTALAÇÃO. AF_06/2022 | E70: un | F70: 3 | G70: 16.76 | H70: 19.03936 | I70: 57.12 | J70: 16.76
A71: 3.60 | B71: Sinapi | C71: 97 | D71: ADAPTADOR PVC SOLDAVEL, COM FLANGE E ANEL DE VEDACAO, 32 MM X 1", PARA CAIXA D'AGUA | E71: un | F71: 4 | G71: 16.29 | H71: 18.50544 | I71: 74.02 | J71: 16.29
A72: 3.61 | B72: Sinapi | C72: 11675 | D72: REGISTRO DE ESFERA, PVC, COM VOLANTE, VS, SOLDAVEL, DN 32 MM, | E72: un | F72: 4 | G72: 40.78 | H72: 46.32608 | I72: 185.3 | J72: 40.78
A73: 3.62 | B73: Sinapi | C73: 34637 | D73: CAIXA D'AGUA / RESERVATORIO EM POLIETILENO, 500 LITROS, COM TAMPA | E73: un | F73: 1 | G73: 253.39 | H73: 287.85104 | I73: 287.85 | J73: 253.39
A74: 3.63 | B74: Sinapi | C74: 94495 | D74: REGISTRO DE GAVETA BRUTO, LATÃO, ROSCÁVEL, 1" - FORNECIMENTO E INSTALAÇÃO. AF_08/2021 | E74: un | F74: 1 | G74: 67.1 | H74: 76.2256 | I74: 76.23 | J74: 67.1
A75: 3.64 | B75: Sinapi | C75: 94496 | D75: REGISTRO DE GAVETA BRUTO, LATÃO, ROSCÁVEL, 1 1/4" - FORNECIMENTO E INSTALAÇÃO. AF_08/2021 | E75: un | F75: 2 | G75: 91.43 | H75: 103.86448 | I75: 207.73 | J75: 91.43
A76: 3.65 | B76: Sinapi | C76: 7603 | D76: TORNEIRA DE METAL AMARELO, PARA TANQUE / JARDIM, DE PAREDE, SEM BICO, CANO CURTO, PADRAO POPULAR / USO GERA | E76: un | F76: 2 | G76: 80.13 | H76: 91.02768 | I76: 182.06 | J76: 80.13
A77: 3.66 | B77: Sinapi | C77: 94795 | D77: TORNEIRA DE BOIA PARA CAIXA D'ÁGUA, ROSCÁVEL, 1/2" - FORNECIMENTO E INSTALAÇÃO. AF_08/2021 | E77: un | F77: 1 | G77: 35.39 | H77: 40.20304 | I77: 40.2 | J77: 35.39
A78: 3.67 | B78: Sinapi | C78: 20080 | D78: ADESIVO PLASTICO PARA PVC, FRASCO COM 175 GR | E78: un | F78: 2 | G78: 20.09 | H78: 22.82224 | I78: =ROUND(F78*H78,2) -> 45.64 | J78: 20.09
A79: 3.68 | B79: Sinapi | C79: 3143 | D79: FITA VEDA ROSCA 18MMX25M | E79: un | F79: 1 | G79: 9.64 | H79: 10.95104 | I79: =ROUND(F79*H79,2) -> 10.95 | J79: 9.64
A80: 3.69 | B80: Sinapi | C80: 35277 | D80: CAIXA DE GORDURA EM PVC, DIAMETRO MINIMO 300 MM, DIAMETRO DE SAIDA 100 MM CAPACIDADE APROXIMADA 18 LITROS, COM TAMPA E CESTO | E80: un | F80: 1 | G80: 303.92 | H80: 345.25312 | I80: =ROUND(F80*H80,2) -> 345.25 | J80: 303.92
A81: 3.70 | B81: Sinapi | C81: 11735 | D81: PROLONGADOR PAR CAIXA DE GORDURA E INSPEÇÃO DN300, PVC | E81: un | F81: 1 | G81: 7.57 | H81: 8.59952 | I81: =ROUND(F81*H81,2) -> 8.6 | J81: 7.57
A82: 3.71 | B82: Sinapi | C82: 89482 | D82: CAIXA SIFONADA, PVC, DN 100 X 100 X 50 MM, FORNECIDA E INSTALADA EM RAMAIS DE ENCAMINHAMENTO DE ÁGUA PLUVIAL. AF_06/2022 | E82: un | F82: 5 | G82: 37.97 | H82: 43.13392 | I82: =ROUND(F82*H82,2) -> 215.67 | J82: 37.97
A83: 3.72 | B83: Sinapi | C83: 94679 | D83: CURVA 90 GRAUS, PVC, SOLDÁVEL, DN 50 MM, INSTALADO EM RESERVAÇÃO DE ÁGUA DE EDIFICAÇÃO QUE POSSUA RESERVATÓRIO DE FIBRA/FIBROCIMENTO FORNECIMENTO E INSTALAÇÃO. AF_06/2016 | E83: un | F83: 11 | G83: 20.59 | H83: 23.39024 | I83: 257.29 | J83: 20.59
A84: 3.73 | B84: Sinapi | C84: 89504 | D84: CURVA 45 GRAUS, PVC, SOLDÁVEL, DN 50MM, INSTALADO EM PRUMADA DE ÁGUA - FORNECIMENTO E INSTALAÇÃO. AF_06/2022 | E84: un | F84: 3 | G84: 16.68 | H84: 18.94848 | I84: 56.85 | J84: 16.68
A85: 3.74 | B85: Sinapi | C85: 89724 | D85: JOELHO 90 GRAUS, PVC, SERIE NORMAL, ESGOTO PREDIAL, DN 40 MM, JUNTA SOLDÁVEL, FORNECIDO E INSTALADO EM RAMAL DE DESCARGA OU RAMAL DE ESGOTO SANITÁRIO. AF_08/2022 | E85: un | F85: 1 | G85: 9.12 | H85: 10.36032 | I85: 10.36 | J85: 9.12
A86: 3.75 | B86: Sinapi | C86: 89731 | D86: JOELHO 90 GRAUS, PVC, SERIE NORMAL, ESGOTO PREDIAL, DN 50 MM, JUNTA ELÁSTICA, FORNECIDO E INSTALADO EM RAMAL DE DESCARGA OU RAMAL DE ESGOTO SANITÁRIO. AF_08/2022 | E86: un | F86: 8 | G86: 14.46 | H86: 16.42656 | I86: 131.41 | J86: 14.46
A87: 3.76 | B87: Sinapi | C87: 89563 | D87: JUNÇÃO SIMPLES, PVC, SERIE R, ÁGUA PLUVIAL, DN 50 MM, JUNTA ELÁSTICA, FORNECIDO E INSTALADO EM RAMAL DE ENCAMINHAMENTO. AF_06/2022 | E87: un | F87: 2 | G87: 29.83 | H87: 33.88688 | I87: 67.77 | J87: 29.83
A88: 3.77 | B88: Sinapi | C88: 103995 | D88: LUVA, PVC, SOLDÁVEL, DN 50MM, INSTALADO EM RAMAL DE DISTRIBUIÇÃO DE ÁGUA - FORNECIMENTO E INSTALAÇÃO. AF_06/2022 | E88: un | F88: 17 | G88: 13.64 | H88: 15.49504 | I88: 263.42 | J88: 13.64
A89: 3.78 | B89: Sinapi | C89: 104345 | D89: JUNÇÃO DE REDUÇÃO INVERTIDA, PVC, SÉRIE NORMAL, ESGOTO PREDIAL, DN 100 X 50 MM, JUNTA ELÁSTICA, FORNECIDO E INSTALADO EM RAMAL DE DESCARGA OU RAMAL DE ESGOTO SANITÁRIO. AF_08/2022 | E89: un | F89: 2 | G89: 38.54 | H89: 43.78144 | I89: 87.56 | J89: 38.54
A90: 3.79 | B90: Sinapi | C90: 20043 | D90: REDUÇÃO EXCÊNTRICA, PVC, ÁGUA PLUVIAL, DN 100 X 50 MM, LINHA NORMAL | E90: un | F90: 2 | G90: 6.51 | H90: 7.39536 | I90: =ROUND(F90*H90,2) -> 14.79 | J90: 6.51
A91: 3.80 | B91: Sinapi | C91: 86883 | D91: SIFÃO DO TIPO FLEXÍVEL EM PVC 1 X 1.1/2 - FORNECIMENTO E INSTALAÇÃO. AF_01/2020 | E91: un | F91: 1 | G91: 12.51 | H91: 14.21136 | I91: 14.21 | J91: 12.51
A92: 3.81 | B92: Sinapi | C92: 86941 | D92: LAVATÓRIO LOUÇA BRANCA COM COLUNA, 45 X 55CM OU EQUIVALENTE, PADRÃO MÉDIO, INCLUSO SIFÃO TIPO GARRAFA, VÁLVULA E ENGATE FLEXÍVEL DE 40CM EMMETAL CROMADO, COM TORNEIRA CROMADA DE MESA, PADRÃO MÉDIO - FORNECIMENTO E INSTALAÇÃO. | E92: un | F92: 1 | G92: 988.04 | H92: 1122.41344 | I92: 1122.41 | J92: 988.04
A93: 3.82 | B93: Sinapi | C93: 86936 | D93: CUBA DE EMBUTIR DE AÇO INOXIDÁVEL MÉDIA, INCLUSO VÁLVULA TIPO AMERICANA E SIFÃO TIPO GARRAFA EM METAL CROMADO - FORNECIMENTO E INSTALAÇÃO | E93: un | F93: 1 | G93: 549.29 | H93: 623.99344 | I93: 623.99 | J93: 549.29
A94: 3.83 | B94: Cotação | D94: LAVADOR DE BOTAS EM AÇO INOXIDÁVEL AISI 304 | E94: un | F94: 1 | G94: 4060.106667 | H94: 4612.281173 | I94: 4612.28 | J94: =O94 -> 4060.106667 | L94: 4132.93 | M94: 2817.39 | N94: 5230 | O94: =AVERAGE(L94:N94) -> 4060.106667
A95: 3.84 | B95: Sinapi | C95: 86906 | D95: TORNEIRA CROMADA DE MESA, 1/2 OU 3/4, PARA LAVATÓRIO, PADRÃO POPULAR - FORNECIMENTO E INSTALAÇÃO. AF_01/2020 | E95: un | F95: 2 | G95: 151.12 | H95: 171.67232 | I95: 343.34 | J95: 151.12
A96: 3.85 | B96: Sinapi | C96: 94768 | D96: ADAPTADOR COM FLANGE E ANEL DE VEDAÇÃO, CPVC, ROSCÁVEL, DN 42 MM, INSTALADO EM RESERVAÇÃO DE ÁGUA DE EDIFICAÇÃO QUE POSSUA RESERVATÓRIO DE FIBRA/FIBROCIMENTO - FORNECIMENTO E INSTALAÇÃO. AF_06/2016 | E96: un | F96: 1 | G96: 76.81 | H96: 87.25616 | I96: 87.26 | J96: 76.81
A97: 3.86 | B97: Cotação | D97: PEDALEIRA PARA ACIONAMENTO TORNEIRA, ROSCA 1/2" | E97: un | F97: 2 | G97: 145.3966667 | H97: 165.1706133 | I97: 330.34 | J97: =O97 -> 145.3966667 | L97: 133.4 | M97: 137.89 | N97: 164.9 | O97: =AVERAGE(L97:N97) -> 145.3966667
A98: 3.87 | B98: Sinapi | C98: 91924 | D98: CABO DE COBRE FLEXÍVEL ISOLADO, 1,5 Mm², ANTI-CHAMA 450/750 V, PARA CIRCUITOS TERMINAIS - FORNECIMENTO E INSTALAÇÃO. AF_03/2023 | E98: m | F98: 49 | G98: 3.4 | H98: 3.8624 | I98: 189.26 | J98: 3.4
A99: 3.88 | B99: Sinapi | C99: 91926 | D99: CABO DE COBRE, RIGIDO, CLASSE 2, ISOLACAO EM PVC/A, ANTICHAMA BWF-B, 1 CONDUTOR, 450/750 V, SECAO NOMINAL 2,5 Mm² | E99: m | F99: 180 | G99: 4.97 | H99: 5.64592 | I99: 1016.27 | J99: 4.97
A100: 3.89 | B100: Sinapi | C100: 91952 | D100: INTERRUPTOR SIMPLES (1 MÓDULO), 10A/250V, SEM SUPORTE E SEM PLACA - FORNECIMENTO E INSTALAÇÃO. AF_03/2023 | E100: un | F100: 4 | G100: 19.48 | H100: 22.12928 | I100: 88.52 | J100: 19.48
A101: 3.90 | B101: Sinapi | C101: 91990 | D101: TOMADA ALTA DE EMBUTIR (1 MÓDULO), 2P+T 10 A, SEM SUPORTE E SEM PLACA - FORNECIMENTO E INSTALAÇÃO. AF_03/2023 | E101: un | F101: 1 | G101: 34.27 | H101: 38.93072 | I101: 38.93 | J101: 34.27
A102: 3.91 | B102: ORSE | C102: 11054/ORSE | D102: CAIXA METÁLICA COM UMA TOMADA 2P+T PARA INSTALAÇÃO APARENTE | E102: un | F102: 10 | G102: 27.17 | H102: 30.86512 | I102: 308.65 | J102: 27.17
A103: 3.92 | B103: Sinapi | C103: 95777 | D103: CONDULETE DE ALUMÍNIO, TIPO B, PARA ELETRODUTO DE AÇO GALVANIZADO DN 20 MM (3/4''), APARENTE - FORNECIMENTO E INSTALAÇÃO. AF_10/2022 | E103: un | F103: 5 | G103: 24.48 | H103: 27.80928 | I103: 139.05 | J103: 24.48
A104: 3.93 | B104: Sinapi | C104: 101890 | D104: DISJUNTOR MONOPOLAR TIPO NEMA, CORRENTE NOMINAL DE 10 ATÉ 30A - FORNECIMENTO E INSTALAÇÃO. AF_10/2020 | E104: un | F104: 1 | G104: 15.49 | H104: 17.59664 | I104: 17.6 | J104: 15.49
A105: 3.94 | B105: Sinapi | C105: 101892 | D105: DISJUNTOR MONOPOLAR TIPO NEMA, CORRENTE NOMINAL DE 10 ATÉ 50A - FORNECIMENTO E INSTALAÇÃO. AF_10/2020 | E105: un | F105: 7 | G105: 67.33 | H105: 76.48688 | I105: 535.41 | J105: 67.33
A106: 3.95 | B106: ORSE | C106: 07943/ORSE | D106: DISJUNTOR BIPOLAR DR 25A - DISPOSITIvO DIFERENCIAL RESIDUAL, TIPO AC, 30MA | E106: un | F106: 3 | G106: 278.5 | H106: 316.376 | I106: 949.13 | J106: 278.5
A107: 3.96 | B107: Sinapi | C107: 93661 | D107: DISJUNTOR BIPOLAR TIPO DIN, CORRENTE NOMINAL DE 16A - FORNECIMENTO E INSTALAÇÃO. AF_10/2020 | E107: un | F107: 2 | G107: 54.55 | H107: 61.9688 | I107: 123.94 | J107: 54.55
A108: 3.97 | B108: Sinapi | C108: 93665 | D108: DISJUNTOR BIPOLAR TIPO DIN, CORRENTE NOMINAL DE 40A - FORNECIMENTO E INSTALAÇÃO. AF_10/2020 | E108: un | F108: 1 | G108: 63.96 | H108: 72.65856 | I108: 72.66 | J108: 63.96
A109: 3.98 | B109: ORSE | C109: 4878/ORSE | D109: PONTO DE LUZ EM TETO OU PAREDE, APARENTE SEM ELETRODUTO | E109: un | F109: 5 | G109: 65.23 | H109: 74.10128 | I109: 370.51 | J109: 65.23
A110: 3.99 | B110: ORSE | C110: 14448/ORSE | D110: ELETRODUTO DE AÇO GALVANIZADO, CLASSE LEVE, DN 25 MM (1") | E110: m | F110: 50 | G110: 33.67 | H110: 38.24912 | I110: 1912.46 | J110: 33.67
A111: 3.100 | B111: Sinapi | C111: 1879 | D111: CURVA 90° PVC ELETRODUTO ROSCAVEL 3/4" | E111: un | F111: 16 | G111: 3.29 | H111: 3.73744 | I111: 59.8 | J111: 3.29
A112: 3.101 | B112: Sinapi | C112: 39128 | D112: ABRAÇADEIRA GALVANIZADA "D" PARA ELETRODUTO 3/4" COM CUNHA | E112: un | F112: 50 | G112: 3.13 | H112: 3.55568 | I112: 177.78 | J112: 3.13
A113: 3.102 | B113: Sinapi | C113: 101878 | D113: QUADRO DE DISTRIBUIÇÃO DE ENERGIA EM CHAPA DE AÇO GALVANIZADO, DE SOBREPOR, COM BARRAMENTO TRIFÁSICO, PARA 18 DISJUNTORES DIN 100A - FORNECIMENTO E INSTALAÇÃO. AF_10/2020 | E113: un | F113: 1 | G113: 516.19 | H113: 586.39184 | I113: =ROUND(F113*H113,2) -> 586.39 | J113: 516.19
A114: 3.103 | B114: Sinapi | C114: 100954 | D114: TRANSPORTE COM CAMINHÃO CARROCERIA COM GUINDAUTO (MUNCK), MOMENTO MÁXIMO DE CARGA 11,7 TM, EM VIA INTERNA (DENTRO DO CANTEIRO - UNIDADE: TXKM). AF_07/2020 | E114: TXKM | F114: 800 | G114: 8.97 | H114: 10.18992 | I114: =ROUND(F114*H114,2) -> 8151.94 | J114: 8.97
A115: 3.104 | B115: CPU | C115: CPU006 | D115: REVESTIMENTO DE PAREDES EM CHAPAS DE AÇO INOXIDÁVEL AISI 304 - APENAS MATERIAL | E115: m² | F115: 70.54 | G115: 363.21 | H115: 412.60656 | I115: =ROUND(F115*H115,2) -> 29105.27 | J115: =CPU!I152 -> 363.21
A116: 3.105 | B116: CPU | C116: CPU008 | D116: CHAPA XADREZ EM ALUMINIO PARA PISO e:3mm, INCLUSO REBITE PARA FIXAÇÃO - APENAS MATERIAL | E116: m² | F116: 29.9 | G116: 471.5 | H116: 535.624 | I116: =ROUND(F116*H116,2) -> 16015.16 | J116: =CPU!I183 -> 471.5

Sheet UBF
A1: MINISTÉRIO DA INTEGRAÇÃO E DO DESENVOLVIMENTO REGIONAL | J1: BDI serviç | K1: 1.2591
A2: COMPANHIA DE DESENVOLVIMENTO DOS VALES DO SÃO FRANCISCO E DO PARNAÍBA | J2: BDI fornec. | K2: 1.136
A3: SEDE
A4: PLANILHA ORÇAMENTÁRIA DE ESTIMATIVA GERAL PARA O ESTADO DO AMAPÁ | H4: Base SINAPI-AP 03/2025 ORSE 02/2025
H5: Data: Maio/2025
A7: Item | B7: Base | C7: Código | D7: Descrição | E7: Unid. | F7: Quant. | G7: Valor (R$)
G8: Unit. (sem BDI) | H8: Unit. (com BDI) | I8: Total
A10: 4 | D10: UNIDADE DE BENEFICIAMENTO DE FRUTOS | I10: =I11+I14+I20+I25+I31+I33+I37+I43+I48+I55 -> 394969.4885
A11: 4.1 | D11: SERVIÇOS PRELIMINARES | I11: =SUM(I12:I13) -> 50125.4
A12: 4.2 | B12: sinapi | C12: 105009 | D12: =[1]CPU!$A$91 -> LOCAÇÃO DE OBRAS | E12: m | F12: =15+10+15+10 -> 50 | G12: =J12 -> 794.17 | H12: =(G12*K$1) -> 999.939447 | I12: =ROUND(F12*H12,2) -> 49996.97 | J12: 794.17
A13: 4.3 | B13: Sinapi | C13: 98525 | D13: LIMPEZA MECANIZADA DE CAMADA VEGETAL, VEGETAÇÃO E PEQUENAS ÁRVORES (DIÂMETRO DE TRONCO MENOR QUE 0,20 M), COM TRATOR DE ESTEIRAS. | E13: m² | F13: =15*10 -> 150 | G13: =J13 -> 0.68 | H13: =(G13*K$1) -> 0.856188 | I13: =ROUND(F13*H13,2) -> 128.43 | J13: 0.68
A14: 4.4 | D14: MOVIMENTO DE TERRA | I14: =SUM(I15:I19) -> 3061.97
A15: 4.5 | B15: Sinapi | C15: 101230 | D15: ESCAVAÇÃO VERTICAL A CÉU ABERTO, EM OBRAS DE INFRAESTRUTURA, INCLUINDO CARGA, DESCARGA E TRANSPORTE, EM SOLO DE 1ª CATEGORIA COM ESCAVADEIRA HIDRÁULICA (CAÇAMBA: 0,8 M³ / 111 HP) | E15: m³ | F15: 54.76 | G15: =J15 -> 11.58 | H15: =G15*$K$1 -> 14.580378 | I15: =ROUND(F15*H15,2) -> 798.42 | J15: 11.58
A16: 4.6 | B16: Sinapi | C16: 100577 | D16: REGULARIZAÇÃO E COMPACTAÇÃO DE SUBLEITO DE SOLO PREDOMINANTEMENTE ARENOSO. | E16: m² | F16: 150 | G16: 0.51 | H16: =G16*$K$1 -> 0.642141 | I16: =ROUND(F16*H16,2) -> 96.32 | J16: 0.51
A17: 4.7 | B17: Sinapi | C17: 96385 | D17: EXECUÇÃO E COMPACTAÇÃO DE ATERRO COM SOLO PREDOMINANTEMENTE ARGILOSO - EXCLUSIVE SOLO, ESCAVAÇÃO, CARGA E TRANSPORTE | E17: m³ | F17: 75 | G17: 12.57 | H17: =G17*$K$1 -> 15.826887 | I17: =ROUND(F17*H17,2) -> 1187.02 | J17: 12.57
A18: 4.8 | B18: Sinapi | C18: 100574 | D18: ESPALHAMENTO DE MATERIAL COM TRATOR DE ESTEIRAS. | E18: m³ | F18: 75 | G18: 1.46 | H18: =G18*$K$1 -> 1.838286 | I18: =ROUND(F18*H18,2) -> 137.87 | J18: 1.46
A19: 4.9 | B19: Sinapi | C19: 100973 | D19: CARGA, MANOBRA E DESCARGA DE SOLOS E MATERIAIS GRANULARES EM CAMINHÃO BASCULANTE 6 M³ - CARGA COM PÁ CARREGADEIRA (CAÇAMBA DE 1,7 A 2,8 M³ /128 HP) E DESCARGA LIVRE | E19: m³ | F19: 75 | G19: 8.92 | H19: =G19*$K$1 -> 11.231172 | I19: =ROUND(F19*H19,2) -> 842.34 | J19: 8.92
A20: 4.10 | D20: FUNDAÇÕES/ ESTRUTURAS DE CONCRETO ARMADO | I20: =SUM(I21:I24) -> 20322.22853
A21: 4.11 | B21: Sinapi | C21: 92802 | D21: CORTE E DOBRA DE AÇO CA-50, DIÂMETRO DE 8,0 MM | E21: kg | F21: 101.6 | G21: =J21 -> 13.01 | H21: =G21*K1 -> 16.380891 | I21: =H21*F21 -> 1664.298526 | J21: 13.01
A22: 4.12 | B22: Sinapi | C22: 94965 | D22: CONCRETO FCK = 25MPA, TRAÇO 1:2,3:2,7 (CIMENTO/ AREIA MÉDIA/ BRITA 1) - PREPARO MECÂNICO COM BETONEIRA 400 L. | E22: m³ | F22: 17 | G22: 779.4 | H22: =G22*K1 -> 981.34254 | I22: =ROUND(F22*H22,2) -> 16682.82 | J22: 779.4
A23: 4.13 | B23: Sinapi | C23: 103673 | D23: LANÇAMENTO COM USO DE BOMBA, ADENSAMENTO E ACABAMENTO DE CONCRETO EM ESTRUTURAS. AF_02/2022 | E23: m³ | F23: 17 | G23: 38.51 | H23: =G23*K1 -> 48.487941 | I23: =ROUND(F23*H23,2) -> 824.29 | J23: 38.51
A24: 4.14 | B24: Sinapi | C24: 97086 | D24: FABRICAÇÃO, MONTAGEM E DESMONTAGEM DE FORMA PARA RADIER, EM MADEIRA SERRADA, 4 UTILIZAÇÕES. | E24: m² | F24: 7.8 | G24: 117.18 | H24: =G24*K1 -> 147.541338 | I24: =ROUND(F24*H24,2) -> 1150.82 | J24: 117.18
A25: 4.15 | D25: ALVENARIAS, DIVISÓRIAS E FECHAMENTOS | I25: =SUM(I26:I30) -> 59102.48
A26: 4.16 | B26: CPU | C26: CPU010 | D26: REVESTIMENTO DE PAREDES EM CHAPAS DE AÇO INOXIDÁVEL AISI 304 - APENAS INSTALAÇÃO | E26: m² | F26: 160.29 | G26: =J26 -> 42.368 | H26: =(G26*K$1) -> 53.3455488 | I26: =ROUND(F26*H26,2) -> 8550.76 | J26: =CPU!I209 -> 42.368
A27: 4.17 | B27: ORSE | C27: 10280/ORSE | D27: MANTA EM LÃ DE VIDRO | E27: un | F27: 134.78 | G27: 15.05 | H27: =(G27*K$1) -> 18.949455 | I27: =ROUND(F27*H27,2) -> 2554.01 | J27: 15.05
A28: 4.18 | B28: CPU | C28: CPU009 | D28: CHAPA XADREZ EM ALUMINIO PARA PISO e:3mm, INCLUSO REBITE PARA FIXAÇÃO - APENAS INSTALAÇÃO | E28: un | F28: 56.544 | G28: 361.2669 | H28: 454.8711538 | I28: =ROUND(F28*H28,2) -> 25720.23 | J28: =CPU!I196 -> 361.2669
A29: 4.19 | B29: Sinapi | C29: 104723 | D29: PAREDE COM SISTEMA EM CHAPAS DE GESSO PARA DRYWALL, USO INTERNO, COM DUAS FACES DUPLAS E ESTRUTURA METÁLICA COM GUIAS DUPLAS PARA PAREDES COM ÁREA LÍQUIDA MENOR QUE 6 M2, COM VÃOS. | E29: m² | F29: 42.8 | G29: 78.77 | H29: 99.179307 | I29: =ROUND(F29*H29,2) -> 4244.87 | J29: 78.77
A30: 4.20 | B30: Sinapi | C30: 96486 | D30: FORRO EM RÉGUAS DE PVC, LISO, PARA AMBIENTES COMERCIAIS, INCLUSIVE ESTRUTURA BIDIRECIONAL DE FIXAÇÃO | E30: m | F30: 54.112 | G30: 264.67 | H30: 333.245997 | I30: =ROUND(F30*H30,2) -> 18032.61 | J30: 264.67
A31: 4.21 | D31: PINTURAS | I31: =SUM(I32:I32) -> 10287.28
A32: 4.22 | B32: Sinapi | C32: 100751 | D32: PINTURA COM TINTA EPOXÍDICA DE ACABAMENTO PULVERIZADA SOBRE PERFIL METÁLICO EXECUTADO EM FÁBRICA (02 DEMÃOS). | E32: m² | F32: 263.9 | G32: =J32 -> 30.96 | H32: =(J32*K$1) -> 38.981736 | I32: =ROUND(F32*H32,2) -> 10287.28 | J32: 30.96
A33: 4.23 | D33: COBERTURAS | I33: =SUM(I34:I36) -> 37568.86
A34: 4.24 | B34: ORSE | C34: 13874/ORSE | D34: ESTRUTURA METALICA P/ COBERTURA DE CRECHE PADRÃO 1 DO PADRÃO FNDE, EM LIGTH STEEL FRAME, COM PERFIS UE70 MONTANTES DE TUBO UE70, INCLUSIVE FORNECIMENTO E MONTAGEM. EXCLUSIVE TELHAS | E34: m² | F34: 98.42 | G34: =J34 -> 113.51 | H34: =(G34*K$1) -> 142.920441 | I34: =ROUND(F34*H34,2) -> 14066.23 | J34: 113.51
A35: 4.25 | B35: Sinapi | C35: 94216 | D35: TELHAMENTO COM TELHA METÁLICA TERMOACÚSTICA E = 30 MM, COM ATÉ 2 ÁGUAS, INCLUSO IÇAMENTO | E35: m² | F35: 98.42 | G35: =J35 -> 174.98 | H35: =(G35*K$1) -> 220.317318 | I35: =ROUND(F35*H35,2) -> 21683.63 | J35: 174.98
A36: 4.26 | B36: Sinapi | C36: 94228 | D36: CALHA EM CHAPA DE AÇO GALVANIZADO NÚMERO 24, DESENVOLVIMENTO DE 50 CM, INCLUSO TRANSPORTE VERTICAL. AF_07/2019 | E36: m | F36: 18 | G36: 80.26 | H36: 101.055366 | I36: =ROUND(F36*H36,2) -> 1819 | J36: 80.26
A37: 4.27 | D37: CONSTRUÇÃO CIVIL | I37: =SUM(I38:I42) -> 19637.13
A38: 4.28 | B38: Sinapi | C38: 100702 | D38: PORTA DE CORRER DE ALUMÍNIO, COM DUAS FOLHAS PARA VIDRO, INCLUSO VIDRO LISO INCOLOR, FECHADURA E PUXADOR, SEM ALIZAR. | E38: m² | F38: 4.85 | G38: =J38 -> 419.82 | H38: =(G38*K$1) -> 528.595362 | I38: =ROUND(F38*H38,2) -> 2563.69 | J38: 419.82
A39: 4.29 | B39: Sinapi | C39: 91341 | D39: PORTA EM ALUMÍNIO DE ABRIR TIPO VENEZIANA COM GUARNIÇÃO, FIXAÇÃO COM PARAFUSOS - FORNECIMENTO E INSTALAÇÃO. | E39: m² | F39: 3.8 | G39: 624.81 | H39: =(G39*K$1) -> 786.698271 | I39: =ROUND(F39*H39,2) -> 2989.45 | J39: 624.81
A40: 4.30 | B40: Sinapi | C40: 100674 | D40: CAIXILHO FIXO DE ALUMÍNIO PARA VIDRO (VIDRO INCLUSO), BATENTE/ REQUADRO DE 4 A 14 CM, SEM GUARNIÇÃO/ ALIZAR, FIXAÇÃO COM PARAFUSOS, VEDAÇÃO COM SILICONE, EXCLUSIVE CONTRAMARCO - FORNECIMENTO E INSTALAÇÃO. AF_11/2024 | E40: m² | F40: 8.85 | G40: 794.17 | H40: 999.939447 | I40: =ROUND(F40*H40,2) -> 8849.46 | J40: 794.17
A41: 4.31 | B41: CPU | C41: CPU007 | D41: REVESTIMENTO CERÂMICO PARA PISO COM PLACAS TIPO ESMALTADA DE DIMENSÕES 45x45cm COM ARGAMASSA AC III | E41: m² | F41: 60 | G41: 37.18524 | H41: 46.81993568 | I41: =ROUND(F41*H41,2) -> 2809.2 | J41: =CPU!I171 -> 37.18524
A42: 4.32 | B42: Sinapi | C42: 94228 | D42: CALHA EM CHAPA DE AÇO GALVANIZADO NÚMERO 24, DESENVOLVIMENTO DE 50 CM, INCLUSO TRANSPORTE VERTICAL. AF_07/2019 | E42: m | F42: 24 | G42: 80.26 | H42: 101.055366 | I42: =ROUND(F42*H42,2) -> 2425.33 | J42: 80.26
A43: 4.33 | D43: INSTALAÇÕES PREDIAIS | I43: =SUM(I44:I47) -> 13890
A44: 4.34 | B44: CPU | C44: CPU001 | D44: =[2]CPU!$A$65 -> EXECUÇÃO DE INSTALAÇÕES HIDROSSANITÁRIAS, EXCLUSIVE EQUIPAMENTOS | E44: =[2]CPU!$I$78 -> cj | F44: 1 | G44: =J44 -> 2636.4 | H44: =(G44*K$1) -> 3319.49124 | I44: =ROUND(F44*H44,2) -> 3319.49 | J44: =CPU!I44 -> 2636.4
A45: 4.35 | B45: CPU | C45: CPU002 | D45: =[2]CPU!$A$78 -> EXECUÇÃO DE INSTALAÇÕES ELÉTRICAS, EXCLUSIVE EQUIPAMENTOS | E45: =[2]CPU!$I$78 -> cj | F45: 1 | G45: 2852.4 | H45: =(G45*K$1) -> 3591.45684 | I45: =ROUND(F45*H45,2) -> 3591.46 | J45: =CPU!I57 -> 2852.4
A46: 4.36 | B46: SINAPI | C46: 98052 | D46: TANQUE SÉPTICO CIRCULAR, EM CONCRETO PRÉ-MOLDADO, DIÂMETRO INTERNO = 1,10 M, ALTURA INTERNA = 2,50 M, VOLUME ÚTIL: 2138,2 L (PARA 5 CONTRIBUINTES). | E46: un | F46: 1 | G46: 2196.7 | H46: 2765.86497 | I46: 2765.86 | J46: 2196.7
A47: 4.37 | B47: SINAPI | C47: 98062 | D47: SUMIDOURO CIRCULAR, EM CONCRETO PRÉ-MOLDADO, DIÂMETRO INTERNO = 1,88 M, ALTURA INTERNA = 2,00 M, ÁREA DE INFILTRAÇÃO: 13,1 M² (PARA 5 CONTRIBUINTES) | E47: un | F47: 1 | G47: 3346.19 | H47: 4213.187829 | I47: 4213.19 | J47: 3346.19
A48: 4.38 | D48: SERVIÇOS DIVERSOS | I48: =SUM(I49:I54) -> 33147.05
A49: 4.39 | B49: CPU | C49: CPU003 | D49: =[2]CPU!$A$140 -> CORTE DE CONTAINER PARA ESQUADRIAS | E49: =[2]CPU!$I$140 -> m² | F49: 12.65 | G49: =J49 -> 163.96923 | H49: =(G49*K$1) -> 206.4536575 | I49: =ROUND(F49*H49,2) -> 2611.64 | J49: =CPU!I76 -> 163.96923
A50: 4.40 | B50: CPU | C50: CPU004 | D50: =[2]CPU!$A$182 -> MODIFICAÇÕES NO CONTAINER COM CORTE POR ESMERILHADEIRA | E50: =[2]CPU!$I$182 -> m | F50: 57.68 | G50: 86.1252 | H50: =(G50*K$1) -> 108.4402393 | I50: 6254.83 | J50: =CPU!I118 -> 86.1252
A51: 4.41 | B51: CPU | C51: CPU005 | D51: =[2]CPU!$A$200 -> MODIFICAÇÕES NO CONTAINER UNIÃO ATRAVÉS DO PROCESSO DE SOLDAGEM, INCLUSO IÇAMENTO DO CONTAINER | E51: =[2]CPU!$I$200 -> m | F51: 40.8 | G51: 362.337106 | H51: 456.2186502 | I51: 18613.72 | J51: =CPU!I140 -> 362.337106
A52: 4.42 | B52: ORSE | C52: 00900/ORSE | D52: ESCADA DE FERRO COM GUARDA-CORPO | E52: m | F52: 0.9 | G52: 601.49 | H52: 757.336059 | I52: 681.6 | J52: 601.49
A53: 4.43 | B53: CPU | C53: CPU011 | D53: GUARDA-CORPO DE AÇO CARBONO, MONTANTES TUBULARES DE 1.1/2" ESPAÇADOS EM 0,75M, ALTURA APROXIMADA DE 0,90M, PREPARADO COM FUNDO E TINTA EPÓXI NA COR AMARELA | E53: m | F53: 1.9 | G53: 464.512373 | H53: 584.8675288 | I53: 1111.25 | J53: =CPU!I233 -> 464.512373
A54: 4.44 | B54: CPU | C54: CPU013 | D54: FORNECIMENTO E INSTALAÇÃO DE SUPORTE PARA CAIXA D'ÁGUA EM METALON | E54: un | F54: 1 | G54: 3076.806904 | H54: 3874.007573 | I54: 3874.01 | J54: =CPU!I287 -> 3076.806904
A55: 4.45 | D55: MATERIAIS | I55: =SUM(I56:I104) -> 147827.09
A56: 4.46 | B56: Cotação | D56: CONTAINER HIGH CUBE 40 PÉS 12,2X2,3X2,9 (COMPXLARGXALTU) | E56: un | F56: 2 | G56: =J56 -> 15133.33 | H56: =(G56*K$2) -> 17191.46288 | I56: =ROUND(F56*H56,2) -> 34382.93 | J56: =CPU!I267 -> 15133.33
A57: 4.47 | B57: Sinapi | C57: 89356 | D57: TUBO PVC, SOLDAVEL, DN 25 MM, AGUA FRIA (NBR-5648) | E57: m | F57: 6 | G57: 21.81 | H57: =(G57*K$2) -> 24.77616 | I57: 148.66 | J57: 21.81
A58: 4.48 | B58: Sinapi | C58: 89357 | D58: TUBO PVC, SOLDAVEL, DN 32 MM, AGUA FRIA (NBR-5648) | E58: m | F58: 18 | G58: 29.7 | H58: 33.7392 | I58: 607.31 | J58: 29.7
A59: 4.49 | B59: Sinapi | C59: 89448 | D59: TUBO PVC, SOLDAVEL, DN 40 MM, AGUA FRIA (NBR-5648) | E59: m | F59: 3 | G59: 14.29 | H59: 16.23344 | I59: 48.7 | J59: 14.29
A60: 4.50 | B60: Sinapi | C60: 9838 | D60: TUBO PVC SERIE NORMAL, DN 50 MM, PARA ESGOTO PREDIAL (NBR 5688) | E60: m | F60: 30 | G60: 7.8 | H60: 8.8608 | I60: 265.82 | J60: 7.8
A61: 4.51 | B61: Sinapi | C61: 89362 | D61: JOELHO 90 GRAUS, PVC, SOLDÁVEL, DN 25MM, INSTALADO EM RAMAL OU SUB-RAMAL DE ÁGUA - FORNECIMENTO E INSTALAÇÃO. AF_06/2022 | E61: un | F61: 5 | G61: 8.8 | H61: 9.9968 | I61: 49.98 | J61: 8.8
A62: 4.52 | B62: Sinapi | C62: 89367 | D62: JOELHO 90 GRAUS, PVC, SOLDÁVEL, DN 32MM, INSTALADO EM RAMAL OU SUB-RAMAL DE ÁGUA - FORNECIMENTO E INSTALAÇÃO. AF_06/2022 | E62: un | F62: 4 | G62: 12.02 | H62: 13.65472 | I62: 54.62 | J62: 12.02
A63: 4.53 | B63: Sinapi | C63: 89497 | D63: JOELHO 90 GRAUS, PVC, SOLDÁVEL, DN 40MM, INSTALADO EM PRUMADA DE ÁGUA - FORNECIMENTO E INSTALAÇÃO. AF_06/2022 | E63: un | F63: 3 | G63: 11.8 | H63: 13.4048 | I63: 40.21 | J63: 11.8
A64: 4.54 | B64: Sinapi | C64: 3874 | D64: LUVA SOLDAVEL COM BUCHA DE LATÃO DN25X1/2" | E64: un | F64: 5 | G64: 5.26 | H64: 5.97536 | I64: 29.88 | J64: 5.26
A65: 4.55 | B65: Sinapi | C65: 12909 | D65: CAP PVC, SOLDAVEL, DN 50 MM, SERIE NORMAL, PARA ESGOTO PREDIAL | E65: un | F65: 3 | G65: 3.25 | H65: 3.692 | I65: 11.08 | J65: 3.25
A66: 4.56 | B66: Sinapi | C66: 7136 | D66: TE DE REDUCAO, PVC, SOLDAVEL, 90 GRAUS, 32 MM X 25 MM, PARA AGUA FRIA PREDIAL | E66: un | F66: 5 | G66: 5.87 | H66: 6.66832 | I66: 33.34 | J66: 5.87
A67: 4.57 | B67: Sinapi | C67: 97 | D67: ADAPTADOR PVC SOLDAVEL, COM FLANGE E ANEL DE VEDACAO, 32 MM X 1", PARA CAIXA D'ÁGUA | E67: un | F67: 1 | G67: 16.29 | H67: 18.50544 | I67: 18.51 | J67: 16.29
A68: 4.58 | B68: Sinapi | C68: 98 | D68: ADAPTADOR PVC SOLDAVEL, COM FLANGE E ANEL DE VEDACAO, 40 MM X 1 1/4", PARA CAIXA D'ÁGUA | E68: un | F68: 1 | G68: 24.38 | H68: 27.69568 | I68: 27.7 | J68: 24.38
A69: 4.59 | B69: Sinapi | C69: 11871 | D69: CAIXA D'AGUA EM POLIETILENO 500 LITROS, COM TAMPA | E69: un | F69: 1 | G69: 423.75 | H69: 481.38 | I69: 481.38 | J69: 423.75
A70: 4.60 | B70: Sinapi | C70: 94795 | D70: TORNEIRA DE BOIA PARA CAIXA D'ÁGUA, ROSCÁVEL, 1/2" - FORNECIMENTO E INSTALAÇÃO. AF_08/2021 | E70: un | F70: 1 | G70: 35.39 | H70: 40.20304 | I70: 40.2 | J70: 35.39
A71: 4.61 | B71: Sinapi | C71: 799 | D71: BUCHA DE REDUCAO PVC, ROSCAVEL, 1" X 1/2" | E71: un | F71: 1 | G71: 3.08 | H71: 3.49888 | I71: 3.5 | J71: 3.08
A72: 4.62 | B72: Sinapi | C72: 11746 | D72: VALVULA DE ESFERA BRUTA EM BRONZE, BITOLA 1” | E72: un | F72: 1 | G72: 84.11 | H72: 95.54896 | I72: 95.55 | J72: 84.11
A73: 4.63 | B73: Sinapi | C73: 4177 | D73: NIPLE DE FERRO GALVANIZADO, COM ROSCA BSP, DE 1/2" | E73: un | F73: 1 | G73: 5.3 | H73: 6.0208 | I73: =ROUND(F73*H73,2) -> 6.02 | J73: 5.3
A74: 4.64 | B74: Sinapi | C74: 3855 | D74: LUVA SOLDAVEL COM BUCHA DE LATÃO DN25X1/2" | E74: un | F74: 1 | G74: 4.54 | H74: 5.15744 | I74: =ROUND(F74*H74,2) -> 5.16 | J74: 4.54
A75: 4.65 | B75: Sinapi | C75: 11674 | D75: REGISTRO ESFERA PVC DN25 SOLDAVEL | E75: un | F75: 1 | G75: 25.69 | H75: 29.18384 | I75: =ROUND(F75*H75,2) -> 29.18 | J75: 25.69
A76: 4.66 | B76: Sinapi | C76: 35277 | D76: CAIXA DE GORDURA EM PVC, DIAMETRO MINIMO 300 MM, DIAMETRO DE SAIDA 100 MM CAPACIDADE APROXIMADA 18 LITROS, COM TAMPA E CESTO | E76: un | F76: 2 | G76: 303.92 | H76: 345.25312 | I76: =ROUND(F76*H76,2) -> 690.51 | J76: 303.92
A77: 4.67 | B77: Sinapi | C77: 89482 | D77: CAIXA SIFONADA, PVC, DN 100 X 100 X 50 MM, FORNECIDA E INSTALADA EM RAMAIS DE ENCAMINHAMENTO DE ÁGUA PLUVIAL. AF_06/2022 | E77: un | F77: 5 | G77: 37.97 | H77: 43.13392 | I77: 215.67 | J77: 37.97
A78: 4.68 | B78: Sinapi | C78: 89502 | D78: JOELHO 45 GRAUS, PVC, SOLDÁVEL, DN 50MM, INSTALADO EM PRUMADA DE ÁGUA - FORNECIMENTO E INSTALAÇÃO. AF_06/2022 | E78: un | F78: 4 | G78: 15.11 | H78: 17.16496 | I78: 68.66 | J78: 15.11
A79: 4.69 | B79: Sinapi | C79: 89501 | D79: JOELHO 90 GRAUS, PVC, SOLDÁVEL, DN 50MM, INSTALADO EM PRUMADA DE ÁGUA - FORNECIMENTO E INSTALAÇÃO. AF_06/2022 | E79: un | F79: 10 | G79: 12.92 | H79: 14.67712 | I79: 146.77 | J79: 12.92
A80: 4.70 | B80: Sinapi | C80: 103995 | D80: LUVA, PVC, SOLDÁVEL, DN 50MM, INSTALADO EM RAMAL DE DISTRIBUIÇÃO DE ÁGUA - FORNECIMENTO E INSTALAÇÃO. AF_06/2022 | E80: un | F80: 21 | G80: 13.64 | H80: 15.49504 | I80: 325.4 | J80: 13.64
A81: 4.71 | B81: Sinapi | C81: 89567 | D81: JUNÇÃO SIMPLES, PVC, SERIE R, ÁGUA PLUVIAL, DN 100 X 100 MM, JUNTA ELÁSTICA, FORNECIDO E INSTALADO EM RAMAL DE ENCAMINHAMENTO. AF_06/2022 | E81: un | F81: 6 | G81: 65.81 | H81: 74.76016 | I81: 448.56 | J81: 65.81
A82: 4.72 | B82: Sinapi | C82: 12909 | D82: CAP PVC, SOLDAVEL, DN 50 MM, SERIE NORMAL, PARA ESGOTO | E82: un | F82: 1 | G82: 3.25 | H82: 3.692 | I82: 3.69 | J82: 3.25
A83: 4.73 | B83: Sinapi | C83: 34628 | D83: DISJUNTOR TIPO DIN/IEC, BIPOLAR 63 A | E83: un | F83: 1 | G83: 67.1 | H83: 76.2256 | I83: 76.23 | J83: 67.1
A84: 4.74 | B84: Sinapi | C84: 34616 | D84: DISJUNTOR TIPO DIN/IEC, BIPOLAR DE 6 ATE 32A | E84: un | F84: 6 | G84: 47.58 | H84: 54.05088 | I84: 324.31 | J84: 47.58
A85: 4.75 | B85: ORSE | C85: 07943/ORSE | D85: DISJUNTOR BIPOLAR DR 25A - DISPOSITIVO DIFERENCIAL RESIDUAL, TIPO AC, 30MA | E85: un | F85: 3 | G85: 278.5 | H85: 316.376 | I85: 949.13 | J85: 278.5
A86: 4.76 | B86: Sinapi | C86: 39805 | D86: QUADRO DE DISTRIBUICAO, EM PVC, DE EMBUTIR, COM BARRAMENTO TERRA / NEUTRO, PARA 12 DISJUNTORES NEMA OU 16 DISJUNTORES DIN | E86: un | F86: 1 | G86: 157.11 | H86: 178.47696 | I86: 178.48 | J86: 157.11
A87: 4.77 | B87: Sinapi | C87: 1014 | D87: CABO DE COBRE, FLEXIVEL, CLASSE 4 OU 5, ISOLACAO EM PVC/A, ANTICHAMA BWF-B, 1 CONDUTOR, 450/750 V, SECAO NOMINAL 2,5 MM2 | E87: m | F87: 397.5 | G87: 2.79 | H87: 3.16944 | I87: 1259.85 | J87: 2.79
A88: 4.78 | B88: Sinapi | C88: 39471 | D88: DISPOSITIVO DPS CLASSE II, 1 POLO, TENSAO MAXIMA DE 275 V, CORRENTE MAXIMA DE *45* KA (TIPO AC) | E88: un | F88: 2 | G88: 95.55 | H88: 108.5448 | I88: 217.09 | J88: 95.55
A89: 4.79 | B89: Sinapi | C89: 981 | D89: CABO DE COBRE, FLEXIVEL, CLASSE 4 OU 5, ISOLACAO EM PVC/A, ANTICHAMA BWF-B, 1 CONDUTOR, 450/750 V, SECAO NOMINAL 4 MM2 | E89: m | F89: 77.58 | G89: 4.62 | H89: 5.24832 | I89: 407.16 | J89: 4.62
A90: 4.80 | B90: Sinapi | C90: 993 | D90: CABO DE COBRE, FLEXIVEL, CLASSE 4 OU 5, ISOLACAO EM PVC/A, ANTICHAMA BWF-B, COBERTURA PVC-ST1, ANTICHAMA BWF-B, 1 CONDUTOR, 0,6/1 KV, SECAO NOMINAL 1,5 MM2 | E90: m | F90: 396.4 | G90: 2.37 | H90: 2.69232 | I90: 1067.24 | J90: 2.37
A91: 4.81 | B91: Sinapi | C91: 38076 | D91: TOMADAS (2 MODULOS) 2P+T 10A, 250V, CONJUNTO MONTADO PARA EMBUTIR 4" X 2" (PLACA + SUPORTE + MODULOS) | E91: un | F91: 11 | G91: 21.15 | H91: 24.0264 | I91: 264.29 | J91: 21.15
A92: 4.82 | B92: Sinapi | C92: 1871 | D92: CAIXA OCTOGONAL DE FUNDO MOVEL, EM PVC, DE 3" X 3", PARA ELETRODUTO FLEXIVEL CORRUGADO | E92: un | F92: 8 | G92: 5.08 | H92: 5.77088 | I92: 46.17 | J92: 5.08
A93: 4.83 | B93: Sinapi | C93: 2689 | D93: ELETRODUTO PVC FLEXIVEL CORRUGADO, COR AMARELA, DE 20 MM | E93: m | F93: 15.53 | G93: 3.02 | H93: 3.43072 | I93: 53.28 | J93: 3.02
A94: 4.84 | B94: Sinapi | C94: 2688 | D94: ELETRODUTO PVC FLEXIVEL CORRUGADO, COR AMARELA, DE 25 MM | E94: m | F94: 71.74 | G94: 3.27 | H94: 3.71472 | I94: 266.49 | J94: 3.27
A95: 4.85 | B95: Sinapi | C95: 20111 | D95: FITA ISOLANTE ADESIVA ANTICHAMA, USO ATE 750 V, EM ROLO DE 19 MM X 20 M | E95: un | F95: 6 | G95: 30.63 | H95: 34.79568 | I95: 208.77 | J95: 30.63
A96: 4.86 | B96: Sinapi | C96: 1873 | D96: CAIXA DE PASSAGEM, EM PVC, DE 4" X 4", PARA ELETRODUTO FLEXIVEL CORRUGADO | E96: un | F96: 1 | G96: 5.65 | H96: 6.4184 | I96: 6.42 | J96: 5.65
A97: 4.87 | B97: Sinapi | C97: 38063 | D97: INTERRUPTOR PARALELO 10A, 250V, CONJUNTO MONTADO PARA EMBUTIR 4" X 2" (PLACA + SUPORTE + MODULO) | E97: un | F97: 4 | G97: 11.38 | H97: 12.92768 | I97: 51.71 | J97: 11.38
A98: 4.88 | B98: Sinapi | C98: 38078 | D98: INTERRUPTOR PARALELO + TOMADA 2P+T 10A, 250V, CONJUNTO MONTADO PARA EMBUTIR 4" X 2" (PLACA + SUPORTE + MODULOS) | E98: un | F98: 1 | G98: 19.53 | H98: 22.18608 | I98: 22.19 | J98: 19.53
A99: 4.89 | B99: Sinapi | C99: 38775 | D99: LUMINARIA TIPO TARTARUGA PARA AREA EXTERNA EM ALUMINIO, COM GRADE, PARA 1 LAMPADA, BASE E27, POTENCIA MAXIMA 40/60 W (NAO INCLUI LAMPADA) | E99: un | F99: 8 | G99: 80.79 | H99: 91.77744 | I99: 734.22 | J99: 80.79
A100: 4.90 | B100: Sinapi | C100: 10569 | D100: CAIXA DE PASSAGEM / DERIVACAO / LUZ, OCTOGONAL 4 X4, EM ACO ESMALTADA, COM FUNDO MOVEL SIMPLES (FMS) | E100: un | F100: 6 | G100: 3.18 | H100: 3.61248 | I100: =ROUND(F100*H100,2) -> 21.67 | J100: 3.18
A101: 4.91 | B101: Sinapi | C101: 100954 | D101: TRANSPORTE COM CAMINHÃO CARROCERIA COM GUINDAUTO (MUNCK), MOMENTO MÁXIMO DE CARGA 11,7 TM, EM VIA INTERNA (DENTRO DO CANTEIRO - UNIDADE: TXKM). AF_07/2020 | E101: TXKM | F101: 600 | G101: 8.97 | H101: 10.18992 | I101: =ROUND(F101*H101,2) -> 6113.95 | J101: 8.97
A102: 4.92 | B102: Sinapi | C102: 100788 | D102: KIT CAVALETE PARA GÁS - SEM MEDIDOR OU REGULADOR - ENTRADA INDIVIDUAL PRINCIPAL, EM AÇO GALVANIZADO DN 15 E 25 MM (1/2" E 1") - FORNECIMENTO E INSTALAÇÃO | E102: und | F102: 1 | G102: 753.89 | H102: 856.41904 | I102: =ROUND(F102*H102,2) -> 856.42 | J102: 753.89
A103: 4.93 | B103: CPU | C103: CPU008 | D103: CHAPA XADREZ EM ALUMINIO PARA PISO e:3mm, INCLUSO REBITE PARA FIXAÇÃO - APENAS MATERIAL | E103: m² | F103: 56.544 | G103: 471.5 | H103: 535.624 | I103: =ROUND(F103*H103,2) -> 30286.32 | J103: =CPU!I183 -> 471.5
A104: 4.94 | B104: CPU | C104: CPU006 | D104: REVESTIMENTO DE PAREDES EM CHAPAS DE AÇO INOXIDÁVEL AISI 304 - APENAS MATERIAL | E104: m² | F104: 160.29 | G104: 363.21 | H104: 412.60656 | I104: =ROUND(F104*H104,2) -> 66136.71 | J104: =CPU!I152 -> 363.21

Sheet CPU
A1: MINISTÉRIO DA INTEGRAÇÃO E DO DESENVOLVIMENTO REGIONAL
A2: COMPANHIA DE DESENVOLVIMENTO DOS VALES DO SÃO FRANCISCO E DO PARNAÍBA
A3: SEDE
A4: PLANILHA ORÇAMENTÁRIA DE ESTIMATIVA GERAL PARA O ESTADO DO AMAPÁ | H4: Base SINAPI-AP 03/2025 ORSE 02/2025
H5: Data: Maio/2025
A6: COMPOSIÇÕES DE PREÇO UNITÁRIO
A8: COMPOSIÇÃO DE PREÇO UNITÁRIO | I8: CPU003
A9: DESCRIÇÃO DO SERVIÇO | H9: DATA BASE: | I9: 2024-07-01
A10: ADMINISTRAÇÃO LOCAL | H10: UNIDADE: | I10: mês
A11: MATERIAL
A12: BASE | B12: CÓDIGO | C12: DISCRIMINAÇÃO | D12: UNI | E12: QUANT. | F12: PROD | G12: P.UN.PROD | H12: P.UN.IMPR | I12: P.TOTAL
A13: MERCADO | C13: ALUGUEL | D13: mês | E13: 1 | H13: 800 | I13: =E13*H13 -> 800
A14: MERCADO | C14: TELEFONE E INTERNET | D14: mês | E14: 1 | H14: 99.9 | I14: 99.9
A15: MERCADO | C15: ENERGIA ELÉTRICA | D15: kwh | E15: 200 | H15: 0.53 | I15: 106
A16: MERCADO | C16: ÁGUA E ESGOTO | D16: mês | E16: 1 | H16: 100 | I16: 100
A17: MERCADO | C17: MATERIAL PARA ESCRITÓRIO | D17: mês | E17: 1 | H17: 150 | I17: 150
A18: MERCADO | C18: MATERIAL DE LIMPEZA | D18: mês | E18: 1 | H18: 50 | I18: 50
A19: SUB-TOTAL | I19: =SUM(I13:I18) -> 1305.9
A20: MÃO DE OBRA
A21: BASE | B21: CÓDIGO | C21: DISCRIMINAÇÃO | D21: UNI | E21: QUANT. | H21: P.UNIT. | I21: P.TOTAL
A22: MERCADO | C22: ENGENHEIRO DE OBRA | D22: mês | E22: 1 | H22: 8483 | I22: =E22*H22 -> 8483
A23: MERCADO | C23: MESTRE DE OBRAS | D23: mês | E23: 1 | H23: 4515.12 | I23: =E23*H23 -> 4515.12
A24: MERCADO | C24: AUXILIAR DE ESCRITORIO COM ENCARGOS COMPLEMENTARES | D24: mês | E24: 1 | H24: 1100 | I24: =E24*H24 -> 1100
A25: MERCADO | C25: TÉCNICO EM SEGURANÇA DO TRABALHO | D25: h | E25: 44 | H25: 27.26 | I25: =E25*H25 -> 1199.44
A26: MERCADO | C26: VIGIA | D26: mês | E26: 1 | H26: 1100 | I26: =E26*H26 -> 1100
A27: SUB-TOTAL | I27: =SUM(I22:I26) -> 16397.56
A28: PRODUÇÃO DA EQUIPE | D28: 1 | E28: CUSTO | I28: =I27+I19 -> 17703.46
A29: TOTAL - R$ | I29: =I28/D28 -> 17703.46
A30: BDI % | I30: 1
A31: TOTAL DO SERVIÇO - R$ | I31: =I29*I30 -> 17703.46
A33: COMPOSIÇÃO DE PREÇO UNITÁRIO | I33: CPU001
A34: DESCRIÇÃO DO SERVIÇO | H34: DATA BASE: | I34: 2025-03-01
A35: EXECUÇÃO DE INSTALAÇÕES HIDROSSANITÁRIAS, EXCLUSIVE EQUIPAMENTOS | H35: UNIDADE: | I35: cj
A36: MÃO DE OBRA
A37: BASE | B37: CÓDIGO | C37: DISCRIMINAÇÃO | D37: UNI | E37: QUANT. | H37: P.UNIT. | I37: P.TOTAL
A38: SINAPI | B38: 88316 | C38: SERVENTE DE OBRAS | D38: h | E38: 80 | H38: 19.85 | I38: =E38*H38 -> 1588
A39: SINAPI | B39: 88309 | C39: PEDREIRO | D39: h | E39: 40 | H39: 26.21 | I39: =E39*H39 -> 1048.4
A40: SUB-TOTAL | I40: =SUM(I38:I39) -> 2636.4
A41: PRODUÇÃO DA EQUIPE | D41: 1 | E41: CUSTO | I41: =SUM(I40) -> 2636.4
A42: TOTAL - R$ | I42: =I41/D41 -> 2636.4
A43: BDI % | I43: 1
A44: TOTAL DO SERVIÇO - R$ | I44: =I42*I43 -> 2636.4
A46: COMPOSIÇÃO DE PREÇO UNITÁRIO | I46: CPU002
A47: DESCRIÇÃO DO SERVIÇO | H47: DATA BASE: | I47: 2025-03-01
A48: EXECUÇÃO DE INSTALAÇÕES ELÉTRICAS, EXCLUSIVE EQUIPAMENTOS | H48: UNIDADE: | I48: cj
A49: MÃO DE OBRA
A50: BASE | B50: CÓDIGO | C50: DISCRIMINAÇÃO | D50: UNI | E50: QUANT. | H50: P.UNIT. | I50: P.TOTAL
A51: SINAPI | B51: 88247 | C51: AUXILIAR DE ELETRICISTA | D51: h | E51: 80 | H51: 22.36 | I51: =E51*H51 -> 1788.8
A52: SINAPI | B52: 88264 | C52: ELETRICISTA | D52: h | E52: 40 | H52: 26.59 | I52: =E52*H52 -> 1063.6
A53: SUB-TOTAL | I53: =SUM(I51:I52) -> 2852.4
A54: PRODUÇÃO DA EQUIPE | D54: 1 | E54: CUSTO | I54: =SUM(I53) -> 2852.4
A55: TOTAL - R$ | I55: =I54/D54 -> 2852.4
A56: BDI % | I56: 1
A57: TOTAL DO SERVIÇO - R$ | I57: =I55*I56 -> 2852.4
A60: COMPOSIÇÃO DE PREÇO UNITÁRIO | I60: CPU003
A61: DESCRIÇÃO DO SERVIÇO | H61: DATA BASE: | I61: 2025-03-01
A62: CORTE DE CONTAINER PARA ESQUADRIAS | H62: UNIDADE: | I62: m²
A63: MATERIAL
A64: BASE | B64: CÓDIGO | C64: DISCRIMINAÇÃO | D64: UNI | E64: QUANT. | H64: P.UNIT. | I64: P.TOTAL
A65: SINAPI | B65: 11359 | C65: ESMERILHADEIRA ANGULAR ELETRICA, DIAMETRO DO DISCO 7 '' (180 MM), ROTACAO 8500RPM, POTENCIA 2400 W | D65: un | E65: 0.071 | H65: 920.13 | I65: =E65*H65 -> 65.32923
A66: SINAPI | B66: 44531 | C66: DISCO DE CORTE DIAMANTADO SEGMENTADO DIAMETRO DE 180 MM PARA ESMERILHADEIRA 7 " | D66: un | E66: 1 | H66: 72.16 | I66: =E66*H66 -> 72.16
A67: SUB-TOTAL | I67: =SUM(I65:I66) -> 137.48923
A68: MÃO DE OBRA
A69: BASE | B69: CÓDIGO | C69: DISCRIMINAÇÃO | D69: UNI | E69: QUANT. | H69: P.UNIT. | I69: P.TOTAL
A70: SINAPI | B70: 88317 | C70: SOLDADOR COM ENCARGOS COMPLEMENTARES | D70: h | E70: 0.5 | H70: 26.95 | I70: =E70*H70 -> 13.475
A71: SINAPI | B71: 88315 | C71: SERRALHEIRO COM ENCARGOS COMPLEMENTARES | D71: h | E71: 0.5 | H71: 26.01 | I71: =E71*H71 -> 13.005
A72: SUB-TOTAL | I72: =SUM(I70:I71) -> 26.48
A73: PRODUÇÃO DA EQUIPE | D73: 1 | E73: CUSTO | I73: =I72+I67 -> 163.96923
A74: TOTAL - R$ | I74: =I73/D73 -> 163.96923
A75: BDI % | I75: 1
A76: TOTAL DO SERVIÇO - R$ | I76: =I74*I75 -> 163.96923
A78: COMPOSIÇÃO DE PREÇO UNITÁRIO | I78: CPU010
A79: DESCRIÇÃO DO SERVIÇO | H79: DATA BASE: | I79: 2024-07-01
A80: FORNECIMENTO E MONTAGEM DE ESTRUTURA PARA COBERTURA COM ÁREA TOTAL DE 86,27 M² INCLUINDO CALHA E TELHA SANDUÍCHE | H80: UNIDADE: | I80: cj
A81: MÃO DE OBRA
A82: BASE | B82: CÓDIGO | C82: DISCRIMINAÇÃO | D82: UNI | E82: QUANT. | H82: P.UNIT. | I82: P.TOTAL
A83: COTAÇÃO | C83: FABRICAÇÃO E MONTAGEM DE ESTRUTURA METÁLICA PARA COBERTURA DE UNIDADE COM ÁREA TOTAL DE 86,26 M² | D83: cj | E83: 1 | H83: 24877.99 | I83: =E83*H83 -> 24877.99
A84: SUB-TOTAL | I84: =SUM(I83:I83) -> 24877.99
A85: PRODUÇÃO DA EQUIPE | D85: 1 | E85: CUSTO | I85: =SUM(I84) -> 24877.99
A86: TOTAL - R$ | I86: =I85/D85 -> 24877.99
A87: BDI % | I87: 1
A88: TOTAL DO SERVIÇO - R$ | I88: =I86*I87 -> 24877.99
A90: COMPOSIÇÃO DE PREÇO UNITÁRIO | I90: CPU011
A91: DESCRIÇÃO DO SERVIÇO | H91: DATA BASE: | I91: 2024-07-01
A92: FORNECIMENTO E MONTAGEM DE ESTRUTURA PARA COBERTURA COM ÁREA TOTAL DE 137,9 M² INCLUINDO CALHA E TELHA SANDUÍCHE | H92: UNIDADE: | I92: cj
A93: MÃO DE OBRA
A94: BASE | B94: CÓDIGO | C94: DISCRIMINAÇÃO | D94: UNI | E94: QUANT. | H94: P.UNIT. | I94: P.TOTAL
A95: COTAÇÃO | C95: FABRICAÇÃO E MONTAGEM DE ESTRUTURA METÁLICA PARA COBERTURA DE UNIDADE COM ÁREA TOTAL DE 137,9 M² | D95: cj | E95: 1 | H95: 39043.9 | I95: =E95*H95 -> 39043.9
A96: SUB-TOTAL | I96: =SUM(I95:I95) -> 39043.9
A97: PRODUÇÃO DA EQUIPE | D97: 1 | E97: CUSTO | I97: =SUM(I96) -> 39043.9
A98: TOTAL - R$ | I98: =I97/D97 -> 39043.9
A99: BDI % | I99: 1
A100: TOTAL DO SERVIÇO - R$ | I100: =I98*I99 -> 39043.9
A102: COMPOSIÇÃO DE PREÇO UNITÁRIO | I102: CPU004
A103: DESCRIÇÃO DO SERVIÇO | H103: DATA BASE: | I103: 2025-03-01
A104: MODIFICAÇÕES NO CONTAINER COM CORTE POR ESMERILHADEIRA | H104: UNIDADE: | I104: m
A105: MATERIAL
A106: BASE | B106: CÓDIGO | C106: DISCRIMINAÇÃO | D106: UNI | E106: QUANT. | H106: P.UNIT. | I106: P.TOTAL
A107: SINAPI | B107: 11359 | C107: ESMERILHADEIRA ANGULAR ELETRICA, DIAMETRO DO DISCO 7 '' (180 MM), ROTACAO 8500RPM, POTENCIA 2400 W | D107: un | E107: 0.04 | H107: 920.13 | I107: =E107*H107 -> 36.8052
A108: SINAPI | B108: 44531 | C108: DISCO DE CORTE DIAMANTADO SEGMENTADO DIAMETRO DE 180 MM PARA ESMERILHADEIRA 7 " | D108: un | E108: 0.5 | H108: 72.16 | I108: =E108*H108 -> 36.08
A109: SUB-TOTAL | I109: =SUM(I107:I108) -> 72.8852
A110: MÃO DE OBRA
A111: BASE | B111: CÓDIGO | C111: DISCRIMINAÇÃO | D111: UNI | E111: QUANT. | H111: P.UNIT. | I111: P.TOTAL
A112: SINAPI | B112: 88317 | C112: SOLDADOR COM ENCARGOS COMPLEMENTARES | D112: h | E112: 0.25 | H112: 26.95 | I112: =E112*H112 -> 6.7375
A113: SINAPI | B113: 88315 | C113: SERRALHEIRO COM ENCARGOS COMPLEMENTARES | D113: h | E113: 0.25 | H113: 26.01 | I113: =E113*H113 -> 6.5025
A114: SUB-TOTAL | I114: =SUM(I112:I113) -> 13.24
A115: PRODUÇÃO DA EQUIPE | D115: 1 | E115: CUSTO | I115: =I114+I109 -> 86.1252
A116: TOTAL - R$ | I116: =I115/D115 -> 86.1252
A117: BDI % | I117: 1
A118: TOTAL DO SERVIÇO - R$ | I118: =I116*I117 -> 86.1252
A120: COMPOSIÇÃO DE PREÇO UNITÁRIO | I120: CPU005
A121: DESCRIÇÃO DO SERVIÇO | H121: DATA BASE: | I121: 2025-03-01
A122: MODIFICAÇÕES NO CONTAINER UNIÃO ATRAVÉS DO PROCESSO DE SOLDAGEM, INCLUSO IÇAMENTO DO CONTAINER | H122: UNIDADE: | I122: m
A123: EQUIPAMENTO
A124: BASE | B124: CÓDIGO | C124: DISCRIMINAÇÃO | D124: UNI | E124: QUANT. | H124: P.UNIT. | I124: P.TOTAL
A125: SINAPI | B125: 92716 | C125: APARELHO PARA CORTE E SOLDA OXI-ACETILENO SOBRE RODAS, INCLUSIVE CILINDROS E MAÇARICOS | D125: chp | E125: 0.1846 | H125: 109.45 | I125: =E125*H125 -> 20.20447
A126: SINAPI | B126: 92715 | C126: APARELHO PARA CORTE E SOLDA OXI-ACETILENO SOBRE RODAS, INCLUSIVE CILINDROS E MAÇARICOS - MATERIAIS NA OPERAÇÃO. | D126: h | E126: 1.56 | H126: 109 | I126: =E126*H126 -> 170.04
A127: SINAPI | B127: 5928 | C127: GUINDAUTO HIDRÁULICO, CAPACIDADE MÁXIMA DE CARGA 6200 KG, MOMENTO MÁXIMO DE CARGA 11,7 TM, ALCANCE MÁXIMO HORIZONTAL 9,70 M, INCLUSIVE CAMINHÃO TOCO PBT 16.000 KG, POTÊNCIA DE 189 CV | D127: chp | E127: 0.2388 | H127: 293.47 | I127: =E127*H127 -> 70.080636
A128: SUB-TOTAL | I128: =SUM(I125:I127) -> 260.325106
A129: SERVIÇOS - COMPOSIÇÕES AUXILIARES
A130: BASE | B130: CÓDIGO | C130: DISCRIMINAÇÃO | D130: UNI | E130: QUANT. | H130: P.UNIT. | I130: P.TOTAL
A131: SINAPI | B131: 98746 | C131: SOLDA DE TOPO EM CHAPA/PERFIL/TUBO DE AÇO CHANFRADO, ESPESSURA=1/4''. | D131: m | E131: 1 | H131: 59.97 | I131: =E131*H131 -> 59.97
A132: SUB-TOTAL | I132: =SUM(I131:I131) -> 59.97
A133: MÃO DE OBRA
A134: BASE | B134: CÓDIGO | C134: DISCRIMINAÇÃO | D134: UNI | E134: QUANT. | H134: P.UNIT. | I134: P.TOTAL
A135: SINAPI | B135: 88317 | C135: SOLDADOR COM ENCARGOS COMPLEMENTARES | D135: h | E135: 1.56 | H135: 26.95 | I135: =E135*H135 -> 42.042
A136: SUB-TOTAL | I136: =SUM(I135:I135) -> 42.042
A137: PRODUÇÃO DA EQUIPE | D137: 1 | E137: CUSTO | I137: =I136+I132+I128 -> 362.337106
A138: TOTAL - R$ | I138: =I137/D137 -> 362.337106
A139: BDI % | I139: 1
A140: TOTAL DO SERVIÇO - R$ | I140: =I138*I139 -> 362.337106
A142: COMPOSIÇÃO DE PREÇO UNITÁRIO | I142: CPU006
A143: DESCRIÇÃO DO SERVIÇO | H143: DATA BASE: | I143: 2025-03-01
A144: REVESTIMENTO DE PAREDES EM CHAPAS DE AÇO INOXIDÁVEL AISI 304 | H144: UNIDADE: | I144: m²
A145: MATERIAL
A146: BASE | B146: CÓDIGO | C146: DISCRIMINAÇÃO | D146: UNI | E146: QUANT. | H146: P.UNIT. | I146: P.TOTAL
A147: COTAÇÃO | C147: CHAPAS DE AÇO INOXIDÁVEL AISI 304 | D147: KG | E147: 9.6 | H147: 34 | I147: =H147*E147 -> 326.4
A148: SINAPI | B148: 131 | C148: ADESIVO ESTRUTURAL A BASE DE RESINA EPOXI, BICOMPONENTE, PASTOSO (TIXOTROPICO) | D148: KG | E148: 0.6 | H148: 61.35 | I148: =H148*E148 -> 36.81
A149: SUB-TOTAL | I149: =SUM(I147:I148) -> 363.21
A150: TOTAL - R$ | I150: =I149 -> 363.21
A151: BDI % | I151: 1
A152: TOTAL DO SERVIÇO - R$ | I152: =I150*I151 -> 363.21
A154: COMPOSIÇÃO DE PREÇO UNITÁRIO | I154: CPU007
A155: DESCRIÇÃO DO SERVIÇO | H155: DATA BASE: | I155: 2025-03-01
A156: REVESTIMENTO CERÂMICO PARA PISO COM PLACAS TIPO ESMALTADA DE DIMENSÕES 45x45cm COM ARGAMASSA AC III | H156: UNIDADE: | I156: m²
A157: MATERIAL
A158: BASE | B158: CÓDIGO | C158: DISCRIMINAÇÃO | D158: UNI | E158: QUANT. | H158: P.UNIT. | I158: P.TOTAL
A159: Sinapi | B159: 37596 | C159: ARGAMASSA COLANTE TIPO AC III E | D159: KG | E159: 9.1325 | H159: 3.03 | I159: =H159*E159 -> 27.671475
A160: Sinapi | B160: 1287 | C160: PISO EM CERAMICA ESMALTADA EXTRA, COR LISA, PEI MAIOR OU IGUAL A 4, FORMATO MENOR OU IGUAL A 5 CM2 | D160: m² | E160: 1.1136 | H160: 20.65 | I160: =H160*E160 -> 22.99584
A161: Sinapi | B161: 34357 | C161: REJUNTE CIMENTÍCIO, QUALQUER COR | D161: KG | E161: 0.188 | H161: 5.05 | I161: =H161*E161 -> 0.9494
A162: SUB-TOTAL | I162: =SUM(I160:I161) -> 23.94524
A163: MÃO DE OBRA
A164: BASE | B164: CÓDIGO | C164: DISCRIMINAÇÃO | D164: UNI | E164: QUANT. | H164: P.UNIT. | I164: P.TOTAL
A165: SINAPI | B165: 88317 | C165: SOLDADOR COM ENCARGOS COMPLEMENTARES | D165: h | E165: 0.25 | H165: 26.95 | I165: =E165*H165 -> 6.7375
A166: SINAPI | B166: 88315 | C166: SERRALHEIRO COM ENCARGOS COMPLEMENTARES | D166: h | E166: 0.25 | H166: 26.01 | I166: =E166*H166 -> 6.5025
A167: SUB-TOTAL | I167: =SUM(I165:I166) -> 13.24
A168: PRODUÇÃO DA EQUIPE | D168: 1 | E168: CUSTO | I168: =I167+I162 -> 37.18524
A169: TOTAL - R$ | I169: =I168/D168 -> 37.18524
A170: BDI % | I170: 1
A171: TOTAL DO SERVIÇO - R$ | I171: =I169*I170 -> 37.18524
A174: COMPOSIÇÃO DE PREÇO UNITÁRIO | I174: CPU008
A175: DESCRIÇÃO DO SERVIÇO | H175: DATA BASE: | I175: 2025-03-01
A176: CHAPA XADREZ EM ALUMINIO PARA PISO e:3mm, INCLUSO REBITE PARA FIXAÇÃO | H176: UNIDADE: | I176: m
A177: MATERIAL
A178: BASE | B178: CÓDIGO | C178: DISCRIMINAÇÃO | D178: UNI | E178: QUANT. | H178: P.UNIT. | I178: P.TOTAL
A179: SINAPI | B179: 1337 | C179: CHAPA DE ACO XADREZ PARA PISOS, E = 1/4" (6,30 MM) 54,53 KG/M2 | D179: kg | E179: 38 | H179: 10.21 | I179: =E179*H179 -> 387.98
A180: SINAPI | B180: 10997 | C180: ELETRODO REVESTIDO AWS - E7018, DIAMETRO IGUAL A 4,00 MM | D180: Kg | E180: 2.88 | H180: 29 | I180: =E180*H180 -> 83.52
A181: SUB-TOTAL | I181: =SUM(I179:I180) -> 471.5
A182: BDI % | I182: 1
A183: TOTAL DO SERVIÇO - R$ | I183: =I181 -> 471.5
A185: COMPOSIÇÃO DE PREÇO UNITÁRIO | I185: CPU009
A186: DESCRIÇÃO DO SERVIÇO | H186: DATA BASE: | I186: 2025-03-01
A187: CHAPA XADREZ EM ALUMINIO PARA PISO e:3mm, INCLUSO REBITE PARA FIXAÇÃO - MÃO DE OBRA | H187: UNIDADE: | I187: m
A188: MÃO DE OBRA
A189: BASE | B189: CÓDIGO | C189: DISCRIMINAÇÃO | D189: UNI | E189: QUANT. | H189: P.UNIT. | I189: P.TOTAL
A190: SINAPI | B190: 88315 | C190: SERRALHEIRO COM ENCARGOS | D190: h | E190: 8.99 | H190: 26.01 | I190: =E190*H190 -> 233.8299
A191: SINAPI | B191: 88316 | C191: SERVENTE COM ENCARGOS COMPLEMENTARES | D191: h | E191: 6.42 | H191: 19.85 | I191: =E191*H191 -> 127.437
A192: SUB-TOTAL | I192: =SUM(I190:I191) -> 361.2669
A193: PRODUÇÃO DA EQUIPE | D193: 1 | E193: CUSTO | I193: =I192 -> 361.2669
A194: TOTAL - R$ | I194: =I193/D193 -> 361.2669
A195: BDI % | I195: 1
A196: TOTAL DO SERVIÇO - R$ | I196: =I194*I195 -> 361.2669
A198: COMPOSIÇÃO DE PREÇO UNITÁRIO | I198: CPU0010
A199: DESCRIÇÃO DO SERVIÇO | H199: DATA BASE: | I199: 2025-03-01
A200: REVESTIMENTO DE PAREDES EM CHAPAS DE AÇO INOXIDÁVEL AISI 304 - CONSIDERANDO CHAPA DE 1,2mm | H200: UNIDADE: | I200: M²
A201: MÃO DE OBRA
A202: BASE | B202: CÓDIGO | C202: DISCRIMINAÇÃO | D202: UNI | E202: QUANT. | H202: P.UNIT. | I202: P.TOTAL
A203: SINAPI | B203: 88317 | C203: SOLDADOR COM ENCARGOS COMPLEMENTARES | D203: h | E203: 0.8 | H203: 26.95 | I203: =E203*H203 -> 21.56
A204: SINAPI | B204: 88315 | C204: SERRALHEIRO COM ENCARGOS COMPLEMENTARES | D204: h | E204: 0.8 | H204: 26.01 | I204: =E204*H204 -> 20.808
A205: SUB-TOTAL | I205: =SUM(I203:I204) -> 42.368
A206: PRODUÇÃO DA EQUIPE | D206: 1 | E206: CUSTO | I206: =I205 -> 42.368
A207: TOTAL - R$ | I207: =I206/D206 -> 42.368
A208: BDI % | I208: 1
A209: TOTAL DO SERVIÇO - R$ | I209: =I207*I208 -> 42.368
A212: COMPOSIÇÃO DE PREÇO UNITÁRIO | I212: CPU011
A213: DESCRIÇÃO DO SERVIÇO | H213: DATA BASE: | I213: 2025-03-01
A214: GUARDA-CORPO DE AÇO CARBONO, MONTANTES TUBULARES DE 1.1/2" ESPAÇADOS EM 0,75M, ALTURA APROXIMADA DE 0,90M, PREPARADO COM FUNDO E TINTA EPÓXI NA COR AMARELA | H214: UNIDADE: | I214: m
A215: MATERIAL
A216: BASE | B216: CÓDIGO | C216: DISCRIMINAÇÃO | D216: UNI | E216: QUANT. | H216: P.UNIT. | I216: P.TOTAL
A217: SINAPI | B217: 1332 | C217: CHAPA DE ACO GROSSA, ASTM A36, E = 3/8 " (9,53 MM) 74,69 KG/M2 | D217: KG | E217: 0,8960000 | H217: 9.08 | I217: =E217*H217 -> 8.13568
... 67 more rows
